{"text_format":"1","workbook":"xlsx","n_sheets":7,"sheets":["Index","General Info","RecoFormat","Sharecapital","CityStateWise_RTA","Taxonomy","TextBlock"],"not_rendered":{"charts":0,"images":1,"macros":1,"external_links":0,"defined_names":44,"comments":0,"pivot_tables":0},"unopened":[],"bounds":{"document_bytes":16777216,"sheet_cells":100000,"rows_first":2000,"rows_last":500,"rows_between":2000,"halvings":0,"cell_chars":16384,"cell_head_chars":4096},"cells_cut":0,"cells_raw":0,"read":"whole","date_system":"1900"}

{"sheet":"Index","index":0,"n_rows":51,"n_cols":10,"rows_kept":51,"cut":false,"hidden":false,"merged":[[50,3,50,9],[37,3,37,9],[38,3,38,9],[39,3,39,9],[40,3,40,9],[43,3,43,9],[44,3,44,9],[45,3,45,9],[46,3,46,9],[47,3,47,9],[48,3,48,9],[49,3,49,9],[36,3,36,9],[22,3,22,9],[23,3,23,9],[27,3,27,9],[28,4,28,8],[29,4,29,8],[30,4,30,8],[33,3,33,9],[35,3,35,9],[34,3,34,9],[24,3,24,9],[21,3,21,9],[5,4,5,8],[6,5,6,8],[7,5,7,8],[8,5,8,8],[10,5,10,8],[13,3,13,9],[14,3,14,9],[15,3,15,9],[18,3,18,9],[19,3,19,9],[20,3,20,9],[9,5,9,8]]}
[]
[]
[]
[]
[]
[null,null,null,null,"                                      XBRL Excel Utility"]
[null,null,null,null,"1.","Overview"]
[null,null,null,null,"2.","Before you begin"]
[null,null,null,null,"3.","Index"]
[null,null,null,null,"4","Steps for Filing - Reconciliation Of Share Capital Audit"]
[null,null,null,null,"5","Fill up the data in excel utility"]
[]
[]
[null,null,null,"1. Overview"]
[null,null,null,"The excel utility can be used for creating the XBRL/XML file for efiling of Reconciliation of Share Capital Audit."]
[null,null,null,"XBRL filling consists of two processes. Firstly generation of XBRL/XML file and then upload the generated XBRL/XML file to BSE Listing Center Website (www.listing.bseindia.com)."]
[]
[]
[null,null,null," 2.  Before you begin"]
[null,null,null,"1. The version of Microsoft Excel in your system should be Microsoft Office Excel 2007 and above."]
[null,null,null,"2. The system should have a file compression software to unzip excel utility file."]
[null,null,null,"3. Make sure that you have downloaded the latest Excel Utility from BSE Website to your local system."]
[null,null,null,"4. Make sure that you have downloaded the Chrome Browser to view report generated from Excel utility"]
[null,null,null,"5. Please enable the Macros (if disabled) as per instructions given in manual, so that all the functionalities of  Excel Utility works fine. Please first go through Enable Macro - Manual attached with zip file."]
[null,null,null,"6. Kindly use this file in local system instead of OneDrive/shared drive.\nBecause it may gives an error \"Run-time error '52' : Bad file name or number\" While clicking on textblock button if files saved on OneDrive/shared drive."]
[]
[]
[null,null,null,"3. Index "]
[null,null,null,1,"Details of general information about company",null,null,null,null,"General Info"]
[null,null,null,2,"RecoFormat",null,null,null,null,"RecoFormat"]
[null,null,null,3,"Sharecapital",null,null,null,null,"Sharecapital"]
[]
[]
[null,null,null,"4. Steps for Filing - Reconciliation Of Share Capital Audit"]
[null,null,null,"I.  Fill up the data: Navigate to each field of every section in the sheet to provide applicable data in correct format.  (Formats will get reflected while filling data.)  \n   - Use paste special command to paste data from other sheet.\n"]
[null,null,null,"II. Validating Sheets:  Click on the ''Validate \"  button to ensure that the sheet has been properly filled and also data has been furnished in proper format. If there are some errors on the sheet, excel utility will prompt you about the same."]
[null,null,null,"III. Validate All Sheets:  Click on the ''Home\"  button. And then click on \"Validate All Sheet\" button to ensure that all sheets has been properly filled and validated successfully. If there are some errors on the sheet, excel utility will prompt you about the same and stop validation at the same time. After correction, once again follow the same procedure to validate all sheets."]
[null,null,null,"Excel Utility will not allow you to generate XBRL/XML until you rectify all errors."]
[null,null,null,"IV. Generate XML :   Excel Utility will not allow you to generate XBRL/XML unless successful validation of all sheet is completed. Now click on 'Generate XML'' to generate XBRL/XML file. \n    - Save the XBRL/XML file in your desired folder in local system."]
[null,null,null,"V. Generate Report :   Excel Utility will allow you to generate Report. Now click on 'Generate Report'' to generate html report.   \n     - Save the HTML Report file in your desired folder in local system.     \n     - To view HTML Report open \"Chrome Web Browser\" . \n     - To print report in PDF Format, Click on print button and save as PDF."]
[null,null,null,"VI. Upload XML file to BSE Listing Center: For uploading the XBRL/XML file generated through  Utility, login to BSE Listing Center and upload generated xml file. On Upload screen provide the required information and browse to select XML file and submit the XML."]
[]
[]
[null,null,null,"5. Fill up the data in excel utility"]
[null,null,null,"1. Cells with red fonts indicate mandatory fields. "]
[null,null,null,"2. If mandatory field is left empty, then Utility will not allow you to proceed further for generating XML."]
[null,null,null,"3. You are not allowed to enter data in the Grey Cells."]
[null,null,null,"4. If fields are not applicable to your company then leave it blank. Do not insert Zero unless it is a mandatory field."]
[null,null,null,"5. Data provided must be in correct format, otherwise Utility will not allow you to proceed further for generating XML ."]
[null,null,null,"6. Select data from \"Dropdown list\" wherever applicable. "]
[null,null,null,"7. Adding Notes:  Click on \"Add Notes\" button to add notes "]

{"sheet":"General Info","index":1,"n_rows":42,"n_cols":20,"rows_kept":42,"cut":false,"hidden":false,"merged":[[24,6,24,8],[25,6,25,8],[26,6,26,8],[28,6,28,8],[29,6,29,8],[40,6,40,8],[27,5,27,8],[31,6,31,8],[32,6,32,8],[41,6,41,8],[34,5,35,5],[33,6,33,8],[37,6,37,8],[38,6,38,8],[39,6,39,8],[30,6,30,8],[8,6,8,8],[7,5,7,8],[9,6,9,8],[21,5,22,5],[15,5,15,8],[10,6,10,8],[11,6,11,8],[14,6,14,8],[16,6,16,8],[17,6,17,8],[18,6,18,8],[19,6,19,8],[20,6,20,8],[12,6,12,8],[13,6,13,8]]}
[null,null,null,null,null,null,null,null,null,null,null,null,null,null,null,null,null,null,"Yes","No"]
[]
[]
[]
[]
[]
[]
[null,null,null,null,null,"RECONCILIATION OF SHARE CAPITAL AUDIT"]
[null,null,null,null,null,"Scrip code*","521210"]
[null,null,null,null,null,"NSE Symbol*","0"]
[null,null,null,null,null,"MSEI Symbol*","0"]
[null,null,null,null,null,"ISIN*","INE117C01010"]
[null,null,null,null,null,"Whether company has CIN","Yes"]
[null,null,null,null,null,"CIN Number","L52322KA1992PLC013512"]
[null,null,null,null,null,"Name of the company*","CITYMAN LIMITED"]
[null,null,null,null,null,"Registered office address"]
[null,null,null,null,null,"Registered office address*","No.153(Old No.43/35) 2nd Floor,Promenade Road,2nd Cross,Frazer Town,Bengaluru-560005"]
[null,null,null,null,null,"Registered office state*","Karnataka"]
[null,null,null,null,null,"Registered office city*","Bengaluru"]
[null,null,null,null,null,"Registered office district*","Bengaluru"]
[null,null,null,null,null,"Registered office pin code*","560005"]
[null,null,null,null,null,"Registered office contact number*","ISD Code*","STD Code*","Number*"]
[null,null,null,null,null,null,"91","80","25540183",null,null,null,null,null,null,null,null,"Registered Office ISD Code","Registered Office STD Code","Registered Office Contact Number"]
[null,null,null,null,null,"Registered office fax",null,"80","25540193",null,null,null,null,null,null,null,null,"Registered Office ISD Code Of Fax Number","Registered Office STD Code Of Fax Number","Registered Office Fax Number"]
[null,null,null,null,null,"Registered office country*","INDIA"]
[null,null,null,null,null,"Registered office website*","www.cityman.in"]
[null,null,null,null,null,"Registered office email*","info@cityman.in"]
[null,null,null,null,null,"Correspondence address"]
[null,null,null,null,null,"Same as above","Yes"]
[null,null,null,null,null,"Correspondence address*","No.153(Old No.43/35) 2nd Floor,Promenade Road,2nd Cross,Frazer Town,Bangalore-560005"]
[null,null,null,null,null,"Correspondence state","Karnataka"]
[null,null,null,null,null,"Correspondence city","Bengaluru"]
[null,null,null,null,null,"Correspondence district","Bengaluru"]
[null,null,null,null,null,"Correspondence pin code","560005"]
[null,null,null,null,null,"Correspondence contact number","ISD Code","STD Code","Number"]
[null,null,null,null,null,null,"91","80","25540183",null,null,null,null,null,null,null,null,"Correspondence ISD Code","Correspondence STD Code","Correspondence Contact Number"]
[null,null,null,null,null,"Correspondence fax",null,"80","25540193",null,null,null,null,null,null,null,null,"Correspondence ISD Code Of Fax Number","Correspondence STD Code Of Fax Number","Correspondence Fax Number"]
[null,null,null,null,null,"Correspondence country","INDIA"]
[null,null,null,null,null,"Correspondence email","info@cityman.in"]
[null,null,null,null,"Removed"]
[null,null,null,null,null,"Reporting quarter*","30-06-2026"]
[null,null,null,null,null,"Face value*",10]

{"sheet":"RecoFormat","index":2,"n_rows":102,"n_cols":102,"rows_kept":102,"cut":false,"hidden":false,"merged":[[65,6,65,7],[101,6,101,7],[100,6,100,7],[95,6,95,7],[63,6,63,7],[99,6,99,7],[67,6,67,7],[97,6,97,7],[98,6,98,7],[96,6,96,7],[68,5,68,7],[75,5,76,5],[69,6,69,7],[70,6,70,7],[71,6,71,7],[72,6,72,7],[73,6,73,7],[74,6,74,7],[78,6,78,7],[92,5,93,5],[84,6,84,7],[86,6,86,7],[87,6,87,7],[80,6,80,7],[81,6,81,7],[82,6,82,7],[88,6,88,7],[89,6,89,7],[90,6,90,7],[91,6,91,7],[83,5,83,7],[85,6,85,7],[66,6,66,7],[58,8,58,9],[7,5,10,5],[46,5,46,7],[47,6,47,7],[52,6,52,7],[49,6,49,7],[51,6,51,7],[48,6,48,7],[50,6,50,7],[30,5,30,7],[34,6,34,7],[40,5,40,8],[61,6,61,7],[57,6,57,7],[59,6,59,7],[62,6,62,7],[60,5,60,7],[55,5,56,5],[54,6,54,7],[24,6,24,7],[24,8,24,9],[24,10,24,11],[24,12,24,13],[58,6,58,7],[49,8,49,9]]}
[null,null,null,null,null,null,null,null,null,null,null,null,null,null,null,null,null,"National Stock Exchange of India Ltd(NSE)","Metropolitan Stock Exchange of India Ltd(MSEI)","Calcutta Stock Exchange of India Ltd(CSE)","BSE Ltd",null,null,null,null,null,"3i Infotech Limited","AARTHI CONSULTANTS PRIVATE LIMITED.","ABHIPRA CAPITAL LTD.","ABS CONSULTANT PRIVATE LIMITED","ACC LIMITED","ACCURATE SECURITIES AND REGISTRY PRIVATE LIMITED","ADROIT CORPORATE SERVICES PVT. LTD.","ALANKIT ASSIGNMENTS PVT. LTD.","ANKIT CONSULTANCY PVT. LTD.","Apollo tyres Limited","BEETAL FINANCIAL & COMPUTER SERVICES PVT","BGSE FINANCIALS LTD","BTS CONSULTANCY SERVICES PVT LTD","Bigshare Services Private Limited","CAMEO CORPORATE SERVICES LIMITED","CANBANK COMPUTER SERVICES LTD","CB MGMT SERVICES (P) LTD(CHOKSEY BHARGAVA & ASSOCIATES LTD.","CIL SECURITIES LIMITED","COMPUTECH SHARECAP LIMITED","COMPUTER AGE MANAGEMENT SERVICES LIMITED","DATA SOFTWARE RESEARCH COMPANY P LTD ( LIMITED)","DATAMATICS FINANCIAL SERVICES LTD.","EIH Limited","ESCORTS LTD","FRANKLIN TEMPLETON ASSET MANAGEMENT (INDIA) PRIVATE LIMITED","FREEDOM REGISTRY LTD.(FORMERLY AMTRAC MANAGEMENT SERVICES LTD)","Finolex Industries Limited","GTL LIMITED","Gujarat Narmada Valley Fertilizers and Chemicals Limited","HINDALCO INDUSTRIES LIMITED","HOUSING DEVELOPMENT FINANCE CORPORATION","INDUS PORTFOLIO PRIVATE LIMITED","INTEGRATED ENTERPRISES (INDIA)LTD.","ITC Limited","Integrated Registry Management Services Private Limited","J K SYNTHETICS LTD","JUPITER CORPORATE SERVICES LIMITED","KFin Technologies Limited","LML LIMITED","LUPIN LTD.","M/s. GNSA INFOTECH LIMITED","MAHESHWARI DATAMATICS PRIVATE LIMITED.","MAS SERVICES LIMITED","MCS LIMITED","MCS SHARE TRANSFER AGENT LTD.","MENNEN FINANCIAL SERVICES LTD.","MF UTILITIES INDIA PVT. LTD.","MUFG Intime India Private Limited","Maashitla Securities Private Limited","Mudra RTA Ventures Private Limited","NAGARJUNA FERTILIZERS AND CHEMICALS LIMITED","NICHE TECHNOLOGIES PRIVATE LIMITED","NIVIS CORPSERVE LLP","NSDL Database Management Limited","PURVA SHAREGISTRY (INDIA) P LTD (BUSICOMP SOFTWARE CONSULTANTS","R & D INFOTECH PVT LTD","RCMC SHARE REGISTRY PVT LTD.","S. K. COMPUTERS","SABI VINIYOG PRIVATE LTD","SATELLITE CORPORATE SERVICES PRIVATE LTD","SHAREPRO SERVICES INDIA PVT LTD.","SHAREX DYNAMIC (INDIA) PVT. LTD(FORMERLY SHAREX INDIA P LTD)","SHRIRAM INSIGHT SHRAE BROKERS LTD.","SKDC CONSULTANTS LTD.","SKYLINE FINANCIAL SERVICES PVT. LTD.","SUNDARAM BNP PARIBAS FUND SERVICES LIMITED.(FORMERLY SUNDARAM SECURITIES SERVICES LIMITED)","SUNDARAM CLAYTON LTD","SYSTEM SUPPORT SERVICES","Sarthak Global Limited","THE INDIAN HOTELS COMPANY LIMITED","TSR Darashaw Limited","UNIVERSAL CAPITAL SECURITIES PRIVATE LIMITED (FORMERLY MONDKAR COMPUTERS PRIVATE LIMITED)","UTI INFRASTRUCTURE TECHNOLOGY AND SERVICES LTD. (FORMERLY UTI TECHNOLOGY SERVICES LTD.)","VENTURE CAPITAL AND CORPORATE INVESTMENTS LTD","XL SOFTECH SYSTEMS LTD.","ZUARI INVESTMENTS LIMITED"]
[null,null,null,null,null,null,null,null,null,null,null,null,null,null,null,null,"IN HOUSE","Yes","No","NA",null,null,null,null,null,null,"INR000001773","INR000000379","INR000003829","INR000001286","INR000004124","INR000004173","INR000002227","INR000002532","INR000000767","INR200004072","INR000000262","INR000004041","INR200004031","INR000001385","INR000003753","INR000003621","INR000003324","INR000002276","INR000003647","INR000002813","INR000000403","INR000000874","INR000003779","INR100004149","INR000004165","INR000003563","INR000001765","INR000003951","INR000002086","INR000003910","INR000003159","INR000003845","INR000000544","INR300000061","INR000000544","INR100000592","INR000003555","INR000000221","INR000001666","INR000004090","INR200003967","INR000000353","INR000000049","INR000000056","INR000004108","INR000002839","INR000004157","INR000004058","INR000004370","INR000004413","INR200004114","INR000003290","INR000004264","INR000004181","INR000001112","INR000003985","INR000000429","INR000003886","INR000004025","INR000003639","INR000001476","INR000002102","INR000004132","INR000000775","INR000003241","INR000004066","INR200003942","INR000000502","INR000002441","INR000003746","INR000004009","INR000004082","INR000001211","INR000001203","INR000000254","INR000003902"]
[null,null,null,null,null,null,null,null,null,null,null,null,null,null,null,null,null,"Chartered accountant","Company secretary","Cost Accountant"]
[null,null,null,null,null,null,null,null,null,null,null,null,null,null,null,null,null,"ACS","FCS",null,null,null,"Yes","NIL"]
[null,null,null,null,null,null,null,null,null,null,null,null,null,null,null,null,null,"Associate","Fellow"]
[null,null,null,null,null,null,null,"Listed Capital (As no. of shares)"]
[null,null,null,null,null,"Stock Exchange Details :","Name of Stock Exchange","Listed Capital","% Of total issued capital"]
[null,null,null,null,null,"Name of stock exchanges where the company's securities are listed","BSE Ltd",11701100,{"$f":"+IF(H8=\"\",\"\",IFERROR(IF(COUNT(H8,$G$19),(ROUND((H8/$G$19)*100,2)),\"\"),\"\"))","v":100},null,null,null,null,null,null,null,null,"Name of stock exchanges where the company's securities are listed"]
[null,null,null,null,null,null,"National Stock Exchange of India Ltd(NSE)",0,{"$f":"+IF(H9=\"\",\"\",IFERROR(IF(COUNT(H9,$G$19),(ROUND((H9/$G$19)*100,2)),\"\"),\"\"))","v":0},null,null,null,null,null,null,null,null,"Name of stock exchanges where the company's securities are listed"]
[null,null,null,null,null,null,"Metropolitan Stock Exchange of India Ltd(MSEI)",0,{"$f":"+IF(H10=\"\",\"\",IFERROR(IF(COUNT(H10,$G$19),(ROUND((H10/$G$19)*100,2)),\"\"),\"\"))","v":0},null,null,null,null,null,null,null,null,"Name of stock exchanges where the company's securities are listed"]
[null,null,null,null,null,null,"Calcutta Stock Exchange of India Ltd(CSE)",0,{"$f":"+IF(H11=\"\",\"\",IFERROR(IF(COUNT(H11,$G$19),(ROUND((H11/$G$19)*100,2)),\"\"),\"\"))","v":0},null,null,null,null,null,null,null,null,"Name of stock exchanges where the company's securities are listed"]
[null,null,null,null,null,"Remarks",null,null,null,null,null,null,null,null,null,null,null,"Disclosure of note on names of the stock exchanges where the company's securities are listed"]
[]
[]
[]
[]
[null,null,null,null,null,"Capital Details :"]
[null,null,null,null,null,null,"Number of shares","% Of total issued capital"]
[null,null,null,null,null,"Issued capital*",11701100]
[null,null,null,null,null,"Held in dematerialised form in CDSL*",578908,{"$f":"IFERROR(IF(COUNT(G20),ROUND(G20/$G$19*100,2),\"\"),\"\")","v":4.95},null,null,null,null,null,null,null,null,null,"PercentageOfSharesHeldInDematerialisedFormInCDSLToTotalNumberOfSharesIssued"]
[null,null,null,null,null,"Held in dematerialised form in NSDL*",8817792,{"$f":"IFERROR(IF(COUNT(G21),ROUND(G21/$G$19*100,2),\"\"),\"\")","v":75.36},null,null,null,null,null,null,null,null,null,"PercentageOfSharesHeldInDematerialisedFormInNSDLToTotalNumberOfSharesIssued"]
[null,null,null,null,null,"Physical*",2304400,{"$f":"IFERROR(IF(COUNT(G22),ROUND(G22/$G$19*100,2),\"\"),\"\")","v":19.690000000000001},null,null,null,null,null,null,null,null,null,"PercentageOfSharesHeldInPhysicalFormatToTotalNumberOfSharesIssued"]
[null,null,null,null,null,"Total no.of shares*",{"$f":"+IF(COUNT(G20:G22),SUM(G20:G22),\"\")","v":11701100},{"$f":"IFERROR(IF(COUNT(G23),ROUND(G23/$G$19*100,2),\"\"),\"\")","v":100},null,null,null,null,null,null,null,null,null,"Percentage as a total number of shares"]
[null,null,null,null,null,"Total no. of Security holders as on end of the quarter*",8463]
[null,null,null,null,null,null,"BSE Ltd",null,"National Stock Exchange of India Ltd(NSE)",null,"Metropolitan Stock Exchange of India Ltd(MSEI)",null,"Calcutta Stock Exchange of India Ltd(CSE)"]
[null,null,null,null,null,null,"Number of shares","Reasons for difference","Number of shares","Reasons for difference","Number of shares","Reasons for difference","Number of shares","Reasons for difference"]
[null,null,null,null,null,"Reasons for difference if any, Between issued capital and listed capital*",{"$f":"IF(OR(NOT(ISNUMBER($G$19)),NOT(ISNUMBER($H$8))),\"\",IF(AND(ISNUMBER($H$8),MOD($H$8,1)=0,$H$8>0),$G$19-$H$8,\"\"))","v":0},null,{"$f":"IF(OR(NOT(ISNUMBER($G$19)),NOT(ISNUMBER($H$9))),\"\",IF(AND(ISNUMBER($H$9),MOD($H$9,1)=0,$H$9>0),$G$19-$H$9,\"\"))","v":""},null,{"$f":"IF(OR(NOT(ISNUMBER($G$19)),NOT(ISNUMBER($H$10))),\"\",IF(AND(ISNUMBER($H$10),MOD($H$10,1)=0,$H$10>0),$G$19-$H$10,\"\"))","v":""},null,{"$f":"IF(OR(NOT(ISNUMBER($G$19)),NOT(ISNUMBER($H$11))),\"\",IF(AND(ISNUMBER($H$11),MOD($H$11,1)=0,$H$11>0),$G$19-$H$11,\"\"))","v":""},null,null,null,null,"Difference between number of shares issued and listed"]
[null,null,null,null,null,"Reasons for difference if any, Between issued capital and total number of shares*",{"$f":"IF(OR(NOT(ISNUMBER($G$19)),NOT(ISNUMBER($G$23)),NOT(ISNUMBER($H$8))),\"\",IF(AND(ISNUMBER($H$8),MOD($H$8,1)=0,$H$8>0),$G$19-$G$23,\"\"))","v":0},null,{"$f":"IF(OR(NOT(ISNUMBER($G$19)),NOT(ISNUMBER($G$23)),NOT(ISNUMBER($H$9))),\"\",IF(AND(ISNUMBER($H$9),MOD($H$9,1)=0,$H$9>0),$G$19-$G$23,\"\"))","v":""},null,{"$f":"IF(OR(NOT(ISNUMBER($G$19)),NOT(ISNUMBER($G$23)),NOT(ISNUMBER($H$10))),\"\",IF(AND(ISNUMBER($H$10),MOD($H$10,1)=0,$H$10>0),$G$19-$G$23,\"\"))","v":""},null,{"$f":"IF(OR(NOT(ISNUMBER($G$19)),NOT(ISNUMBER($G$23)),NOT(ISNUMBER($H$11))),\"\",IF(AND(ISNUMBER($H$11),MOD($H$11,1)=0,$H$11>0),$G$19-$G$23,\"\"))","v":""},null,null,null,null,"Difference between number of shares issued and total number of shares"]
[null,null,null,null,null,"Reasons for difference if any, Between listed capital and total number of shares*",{"$f":"IF(OR(NOT(ISNUMBER($H$8)),NOT(ISNUMBER($G$23))),\"\",IF(AND(ISNUMBER($H$8),MOD($H$8,1)=0,$H$8>0),$H$8-$G$23,\"\"))","v":0},null,{"$f":"IF(OR(NOT(ISNUMBER($H$9)),NOT(ISNUMBER($G$23))),\"\",IF(AND(ISNUMBER($H$9),MOD($H$9,1)=0,$H$9>0),$H$9-$G$23,\"\"))","v":""},null,{"$f":"IF(OR(NOT(ISNUMBER($H$10)),NOT(ISNUMBER($G$23))),\"\",IF(AND(ISNUMBER($H$10),MOD($H$10,1)=0,$H$10>0),$H$10-$G$23,\"\"))","v":""},null,{"$f":"IF(OR(NOT(ISNUMBER($H$11)),NOT(ISNUMBER($G$23))),\"\",IF(AND(ISNUMBER($H$11),MOD($H$11,1)=0,$H$11>0),$H$11-$G$23,\"\"))","v":""},null,null,null,null,"Difference between number of shares listed and total number of shares"]
[]
[null,null,null,null,null,"Certifying the details of changes in share capital during the quarter under consideration as per Table below :"]
[null,null,null,null,null,"Whether changes during the quarter*","No","Click here"]
[]
[null,null,null,null,null,"Register of members is updated*","Yes","<<  Select from drop down"]
[null,null,null,null,null,"If not, Updated upto which date",""]
[null,null,null,null,null,"Reference of previous quarter with regards to excess dematerialised shares,If any.","NA"]
[null,null,null,null,null,"Has the company resolved the matter (excess dematerialised shares mentioned above) in the current quarter ?*","NA","<<  Select from drop down"]
[null,null,null,null,null,"If not, Reason why ?",""]
[null,null,null,null,null,"Other Details Auditor"]
[]
[null,null,null,null,null,"Mention the total no. of requests, If any, confirmed after 21 days and the total no. of requests pending beyond 21 days with the reasons for delay"]
[null,null,null,null,null,"  Total no.of demat requests","No.of requests*","No.of shares*","Reasons for delay"]
[null,null,null,null,null,"Confirmed after 21 days*","0","0","0"]
[null,null,null,null,null,"Pending for more than 21 days*","0","0","0"]
[null,null,null,null,null,"Remarks",null,null,null,null,null,null,null,null,null,null,null,"Disclosure of note on total number of requests confirmed after 21 days and the total number of requests pending beyond 21 days"]
[]
[null,null,null,null,null,"Compliance Officer Details"]
[null,null,null,null,null,"Whether Compliance officer appointed","Yes",null,null,null,null,null,null,null,null,null,null,"Whether Compliance officer appointed"]
[null,null,null,null,null,"Whether Qualified Company Secretary is Compliance Officer *","Yes",null,null,null,null,null,null,null,null,null,null,"Whether Qualified Company Secretary is Compliance Officer"]
[null,null,null,null,null,"Name of the compliance officer*","Vidhya K V",null,null,null,null,null,null,null,null,null,null,"Name of the compliance officer"]
[null,null,null,null,null,"PAN of the compliance officer*","ATAPV3844J",null,null,null,null,null,null,null,null,null,null,"PAN of the compliance officer*"]
[null,null,null,null,null,"Date of Appointment*","08-01-2026",null,null,null,null,null,null,null,null,null,null,"Date of appointment of compliance officer*"]
[null,null,null,null,null,"Designation*","Company Secretary & Compliance Officer",null,null,null,null,null,null,null,null,null,null,"Designation of the compliance officer"]
[null,null,null,null,null,"Membership Nos*","ACS","35782",null,null,null,null,null,null,null,null,null,"Membership Number Of Compliance Officer*","Membership Number Of Compliance Officer*"]
[null,null,null,null,null,"Mobile no.*",7358329008,null,null,null,null,null,null,null,null,null,null,"Contact Number Of The Compliance Officer"]
[null,null,null,null,null,"Fax no.","STD Code","Number",null,null,null,null,null,null,null,null,null,"STD Code Of The Compliance Officer","Contact Number Of The Compliance Officer"]
[null,null,null,null,null,null,"","",null,null,null,null,null,null,null,null,null,"STD Code Of Fax Number Of The Compliance Officer","Fax Number Of The Compliance Officer"]
[null,null,null,null,null,"E-mail id*","csvidhyapkd@gmail.com",null,null,null,null,null,null,null,null,null,null,"Name of the compliance officer E-mail id","E-mail id of the compliance officer"]
[null,null,null,null,null,"Whether any change in Compliance Officer during the previous 2 quarters*","Yes",null,"For calculating 2 previous quarters companies are advised to consider Current quarter and previous 2 quarters",null,null,null,null,null,null,null,null,"Whether any change in Compliance Officer during the quarter "]
[null,null,null,null,null,"Whether the previous Compliance Officer was Qualified Company Secretary *","Yes",null,null,null,null,null,null,null,null,null,null,"Whether the previous Compliance Officer was Qualified Company Secretary "]
[null,null,null,null,null,"Details of Previous Compliance Officer"]
[null,null,null,null,null,"Details of Previous Compliance Officer","Yes",null,null,null,null,null,null,null,null,null,null,"Details of Previous Compliance Officer"]
[null,null,null,null,null,"Previous Compliance Officer Name","Subramanian Vishnu",null,null,null,null,null,null,null,null,null,null,"Previous Compliance Officer Name"]
[null,null,null,null,null,"PAN of the previous compliance officer*","BEZPV9177B",null,null,null,null,null,null,null,null,null,null,"PAN of the previous compliance officer*"]
[null,null,null,null,null,"Membership Nos","ACS","71564",null,null,null,null,null,null,null,null,null,"Membership Nos","Membership Nos"]
[null,null,null,null,null,"Reason for entering the same membership Nos.","",null,null,null,null,null,null,null,null,null,null,"Reason for entering the same membership Nos.","Reason for entering the same membership Nos."]
[null,null,null,null,null,"Date of Appointment","03-10-2023",null,null,null,null,null,null,null,null,null,null,"Date of appointment of previous compliance officer"]
[null,null,null,null,null,"Date of Cessation","08-01-2026",null,null,null,null,null,null,null,null,null,null,"Date of cessation of previous compliance officer"]
[null,null,null,null,null,"Certifying Auditor Details"]
[null,null,null,null,null,"CA/CS/CMA*","Chartered accountant",null,null,null,null,null,null,null,null,null,null,"CA/CS","CA/CS/CMA*"]
[null,null,null,null,null,"Name of certifying auditor*","B.Manohar Babu",null,null,null,null,null,null,null,null,null,null,"Name of certifying auditor","Name of certifying auditor*"]
[null,null,null,null,null,"Date of issue of report*","13-07-2026",null,null,null,null,null,null,null,null,null,null,"Name of certifying auditor Date of issue of report","Date of signing of certifying auditor"]
[null,null,null,null,null,"Address*","NSVM & Associates,No.63/1,Above Canara Bank,Railway Parallel Road,Kumara Park West,Bengaluru-560020",null,null,null,null,null,null,null,null,null,null,"Name of certifying auditor Address","Address of certifying auditor"]
[null,null,null,null,null,"City*","Bengaluru",null,null,null,null,null,null,null,null,null,null,"Name of certifying auditor City","City of certifying auditor"]
[null,null,null,null,null,"Pincode*","560020",null,null,null,null,null,null,null,null,null,null,"Name of certifying auditor Pincode","Pin code of certifying auditor"]
[null,null,null,null,null,"Contact no.*","STD Code","Number"]
[null,null,null,null,null,null,"80","41506054",null,null,null,null,null,null,null,null,null,"STD Code Of Certifying Auditor","Contact Number Of Certifying Auditor"]
[null,null,null,null,null,"Fax no.",null,null,null,null,null,null,null,null,null,null,null,"STD Code Of Fax Number Of Certifying Auditor","Fax Number Of Certifying Auditor"]
[null,null,null,null,null,"Email*","people@nsvm.in",null,null,null,null,null,null,null,null,null,null,"Name of certifying auditor Email","Email of certifying auditor"]
[null,null,null,null,null,"Membership no.*","Fellow","221455",null,null,null,null,null,null,null,null,null,"Name of certifying auditor Membership no.","Name of certifying auditor Membership no.","Membership number of certifying auditor"]
[null,null,null,null,null,"Firms registration number of audit firm","010072S",null,null,null,null,null,null,null,null,null,null,"Firms registration number of audit firm"]
[null,null,null,null,null,"Name of the firm*","NSVM & Associates",null,null,null,null,null,null,null,null,null,null,"Name of the firm ",null,"Name of the firm"]
[null,null,null,null,null,"COP number*","221455",null,null,null,null,null,null,null,null,null,null,"COP Number Of Certifying Auditor",null,"COP number of certifying auditor"]
[null,null,null,null,null,"Registrar and Share Transfer Agent Details"]
[null,null,null,null,null,"Appointment of common agency for share registry work*","Yes",null,null,null,null,null,null,null,null,null,null,"Appointment of common agency for share registry work"]
[null,null,null,null,null,"Whether Registered with SEBI*","Yes",null,null,null,null,null,null,null,null,null,null,"Whether Registered with SEBI"]
[null,null,null,null,null,"Name of RTA","Integrated Registry Management Services Private Limited",null,null,null,null,null,null,null,null,null,null,"Name of RTA"]
[null,null,null,null,null,"SEBI registration no.",{"$f":"IFERROR(HLOOKUP($G$87,$AA$1:$CX$2,2,FALSE),\"\")","v":"INR000000544"},null,null,null,null,null,null,null,null,null,null,"Name of RTA SEBI registration no.","SEBI registration number"]
[null,null,null,null,null,"Address","No.30,Ramana Residency,4th Cross,Sampige Road,Malleswaram,Bengaluru-560003",null,null,null,null,null,null,null,null,null,null,"Name of RTA Address","Address of RTA"]
[null,null,null,null,null,"State","Karnataka",null,null,null,null,null,null,null,null,null,null,"Name of RTA State","State of RTA"]
[null,null,null,null,null,"City","Bengaluru",null,null,null,null,null,null,null,null,null,null,"Name of RTA City","City of RTA"]
[null,null,null,null,null,"Pincode","560003",null,null,null,null,null,null,null,null,null,null,"Name of RTAPincode","Pincode of RTA"]
[null,null,null,null,null,"Contact no.","STD Code","Number"]
[null,null,null,null,null,null,"80","26460815",null,null,null,null,null,null,null,null,null,"STD Code Of RTA","Contact Number Of RTA"]
[null,null,null,null,null,"Fax number of RTA","80","26460816",null,null,null,null,null,null,null,null,null,"STD Code Of Fax Number Of RTA","Fax Number Of RTA"]
[null,null,null,null,null,"E-mail id*","irg@integratedindia.in",null,null,null,null,null,null,null,null,null,null,"Name of RTA E-mail id*","Email id of RTA"]
[null,null,null,null,null,"Website Address*","www.integratedindia.in",null,null,null,null,null,null,null,null,null,null,"Website Address*","Website adress of RTA"]
[null,null,null,null,null,"Whether any change in Registrar and Share Transfer Agents *","No",null,null,null,null,null,null,null,null,null,null,"Whether any change in Registrar and Share Transfer Agents"]
[null,null,null,null,null,"Previous Registrar and Share Transfer Agents Name","",null,null,null,null,null,null,null,null,null,null,"Previous Registrar and Share Transfer Agents Name ","Name of previous registrar and share transfer agents"]
[null,null,null,null,null,"Date of Cessation ","",null,null,null,null,null,null,null,null,null,null,"Date of cessation previous registrar and share transfer agents"]
[null,null,null,null,null,"Remarks relating to Register and Share Transfer Agent","",null,null,null,null,null,null,null,null,null,null,"Remarks relating to Register and Share Transfer Agent"]
[null,null,null,null,null,"Any other detail that the auditor may like to provide. (e.g. BIFR company, delisting from SE)",null,null,null,null,null,null,null,null,null,null,null,"Any other detail that the auditor may like to provide. (e.g. BIFR company, delisting from SE,"]

{"sheet":"Sharecapital","index":3,"n_rows":8,"n_cols":35,"rows_kept":8,"cut":false,"hidden":true,"merged":[[6,5,6,13]]}
[null,null,null,null,null,null,null,null,0,null,null,null,null,null,null,null,null,null,null,null,null,null,null,null,null,"Amalgmation","Any Other","Buyback","Bonus","Conversion","Capital Reduction","ESOPs","Forfeitures","Preferential Issue","Rights"]
[null,null,null,null,null,null,"Particulars","No.of shares","Applied / Not Applied for listing","Listed on Stock Exchanges (Specify Names)","Whether intimated to CDSL","Whether intimated to NSDL","In-prin appr. pending for Stock Exchange","Disclosure of note on certifying the details of changes in share capital during the quarter under consideration",null,null,null,null,null,null,null,null,null,null,null,"BSE Ltd","National Stock Exchange of India Ltd(NSE)","Metropolitan Stock Exchange of India Ltd(MSEI)","Calcutta Stock Exchange of India Ltd(CSE)"]
[null,null,null,null,null,null,null,null,null,null,null,null,null,null,null,null,null,null,null,null,null,null,null,null,null,"Applied","Not Applied","NA"]
[null,null,null,null,null,null,null,null,null,null,null,null,null,null,null,null,null,null,null,null,null,null,null,null,null,"Yes","No","NA"]
[]
[]
[null,null,null,null,null,"Certifying the details of changes in share capital during the quarter under consideration as per Table below :"]
[null,null,null,null,null,"Serial No.","Particulars","No.of shares","Applied / Not Applied for listing","Listed on Stock Exchanges (Specify Names)","Whether intimated to CDSL","Whether intimated to NSDL","In-prin appr. pending for Stock Exchange","Remarks"]

{"sheet":"CityStateWise_RTA","index":4,"n_rows":654,"n_cols":14,"rows_kept":654,"cut":false,"hidden":true,"merged":[[0,5,0,7],[1,5,1,7]]}
["Sr. No.","State","City","All State in line","Registered office state*","Andaman & Nicobar Islands",null,null,null,"Sr. No.","RTA NAME","REG NO",null,"StateName"]
[1,"Andaman & Nicobar Islands","Diglipur","Andaman & Nicobar Islands","Registered office city*","Diglipur",null,null,{"$f":"D2=N2","v":true},1,"3i Infotech Limited","INR000001773",null,"Andaman & Nicobar Islands"]
[1,"Andaman & Nicobar Islands","Port Blair","Andhra Pradesh",null,null,null,null,{"$f":"D3=N3","v":true},2,"AARTHI CONSULTANTS PRIVATE LIMITED.","INR000000379",null,"Andhra Pradesh"]
[1,"Andaman & Nicobar Islands","Rangat","Arunachal Pradesh",null,null,null,null,true,3,"ABHIPRA CAPITAL LTD.","INR000003829",null,"Arunachal Pradesh"]
[2,"Andhra Pradesh","Adoni","Assam",null,null,null,null,true,4,"ABS CONSULTANT PRIVATE LIMITED","INR000001286",null,"Assam"]
[2,"Andhra Pradesh","Amaravati","Bihar",null,null,null,null,true,5,"ACC LIMITED","INR000004124",null,"Bihar"]
[2,"Andhra Pradesh","Anantapur","Chandigarh",null,null,null,null,{"$f":"D7=N7","v":true},6,"ACCURATE SECURITIES AND REGISTRY PRIVATE LIMITED","INR000004173",null,"Chandigarh"]
[2,"Andhra Pradesh","Bhimavaram","Chhattisgarh",null,null,null,null,{"$f":"D9=N8","v":false},7,"ADROIT CORPORATE SERVICES PVT. LTD.","INR000002227",null,"Chhattisgarh"]
[2,"Andhra Pradesh","Chilakaluripet","Dadra & Nagar Haveli and Daman & Diu",null,null,null,null,false,8,"ALANKIT ASSIGNMENTS PVT. LTD.","INR000002532",null,"Dadra & Nagar Haveli and Daman & Diu"]
[2,"Andhra Pradesh","Chittoor","Delhi",null,null,null,null,false,9,"ANKIT CONSULTANCY PVT. LTD.","INR000000767",null,"Delhi"]
[2,"Andhra Pradesh","Dharmavaram","Goa",null,null,null,null,false,10,"Apollo tyres Limited","INR200004072",null,"Goa"]
[2,"Andhra Pradesh","Eluru","Gujarat",null,null,null,null,false,11,"BEETAL FINANCIAL & COMPUTER SERVICES PVT","INR000000262",null,"Gujarat"]
[2,"Andhra Pradesh","Gudivada","Haryana",null,null,null,null,false,12,"BGSE FINANCIALS LTD","INR000004041",null,"Haryana"]
[2,"Andhra Pradesh","Guntakal","Himachal Pradesh",null,null,null,null,false,13,"BTS CONSULTANCY SERVICES PVT LTD","INR200004031",null,"Himachal Pradesh"]
[2,"Andhra Pradesh","Guntur","Jammu & Kashmir",null,null,null,null,false,14,"Bigshare Services Private Limited","INR000001385",null,"Jammu & Kashmir"]
[2,"Andhra Pradesh","Hindupur","Jharkhand",null,null,null,null,false,15,"CAMEO CORPORATE SERVICES LIMITED","INR000003753",null,"Jharkhand"]
[2,"Andhra Pradesh","Kadapa","Karnataka",null,null,null,null,false,16,"CANBANK COMPUTER SERVICES LTD","INR000003621",null,"Karnataka"]
[2,"Andhra Pradesh","Kurnool","Kerala",null,null,null,null,false,17,"CB MGMT SERVICES (P) LTD(CHOKSEY BHARGAVA & ASSOCIATES LTD.","INR000003324",null,"Kerala"]
[2,"Andhra Pradesh","Machilipatnam","Ladakh",null,null,null,null,false,18,"CIL SECURITIES LIMITED","INR000002276",null,"Ladakh"]
[2,"Andhra Pradesh","Madanapalle","Lakshadweep",null,null,null,null,false,19,"COMPUTECH SHARECAP LIMITED","INR000003647",null,"Lakshadweep"]
[2,"Andhra Pradesh","Narasaraopet","Madhya Pradesh",null,null,null,null,false,20,"COMPUTER AGE MANAGEMENT SERVICES LIMITED","INR000002813",null,"Madhya Pradesh"]
[2,"Andhra Pradesh","Nellore","Maharashtra",null,null,null,null,false,21,"DATA SOFTWARE RESEARCH COMPANY P LTD ( LIMITED)","INR000000403",null,"Maharashtra"]
[2,"Andhra Pradesh","Ongole","Manipur",null,null,null,null,false,22,"DATAMATICS FINANCIAL SERVICES LTD.","INR000000874",null,"Manipur"]
[2,"Andhra Pradesh","Proddatur","Meghalaya",null,null,null,null,false,23,"EIH Limited","INR000003779",null,"Meghalaya"]
[2,"Andhra Pradesh","Rajahmundry","Mizoram",null,null,null,null,false,24,"ESCORTS LTD","INR100004149",null,"Mizoram"]
[2,"Andhra Pradesh","Srikakulam","Nagaland",null,null,null,null,false,25,"FRANKLIN TEMPLETON ASSET MANAGEMENT (INDIA) PRIVATE LIMITED","INR000004165",null,"Nagaland"]
[2,"Andhra Pradesh","Tadipatri","Odisha",null,null,null,null,false,26,"FREEDOM REGISTRY LTD.(FORMERLY AMTRAC MANAGEMENT SERVICES LTD)","INR000003563",null,"Odisha"]
[2,"Andhra Pradesh","Tenali","Puducherry",null,null,null,null,false,27,"Finolex Industries Limited","INR000001765",null,"Puducherry"]
[2,"Andhra Pradesh","Tirupati","Punjab",null,null,null,null,false,28,"GTL LIMITED","INR000003951",null,"Punjab"]
[2,"Andhra Pradesh","Vijayawada","Rajasthan",null,null,null,null,false,29,"Gujarat Narmada Valley Fertilizers and Chemicals Limited","INR000002086",null,"Rajasthan"]
[2,"Andhra Pradesh","Visakhapatnam","Sikkim",null,null,null,null,false,30,"HINDALCO INDUSTRIES LIMITED","INR000003910",null,"Sikkim"]
[2,"Andhra Pradesh","Vizianagaram","Tamil Nadu",null,null,null,null,false,31,"HOUSING DEVELOPMENT FINANCE CORPORATION","INR000003159",null,"Tamil Nadu"]
[3,"Arunachal Pradesh","Aalo","Telangana",null,null,null,null,false,32,"INDUS PORTFOLIO PRIVATE LIMITED","INR000003845",null,"Telangana"]
[3,"Arunachal Pradesh","Along","Tripura",null,null,null,null,false,33,"INTEGRATED ENTERPRISES (INDIA)LTD.","INR000000544",null,"Tripura"]
[3,"Arunachal Pradesh","Bomdila","Uttar Pradesh",null,null,null,null,false,34,"ITC Limited","INR300000061",null,"Uttar Pradesh"]
[3,"Arunachal Pradesh","Itanagar","Uttarakhand",null,null,null,null,false,35,"Integrated Registry Management Services Private Limited","INR000000544",null,"Uttarakhand"]
[3,"Arunachal Pradesh","Naharlagun","West Bengal",null,null,null,null,false,36,"J K SYNTHETICS LTD","INR100000592",null,"West Bengal"]
[3,"Arunachal Pradesh","Pasighat",null,null,null,null,null,true,37,"JUPITER CORPORATE SERVICES LIMITED","INR000003555"]
[3,"Arunachal Pradesh","Roing",null,null,null,null,null,true,38,"KFin Technologies Limited","INR000000221"]
[3,"Arunachal Pradesh","Tawang",null,null,null,null,null,true,39,"LML LIMITED","INR000001666"]
[3,"Arunachal Pradesh","Tezu",null,null,null,null,null,true,40,"LUPIN LTD.","INR000004090"]
[3,"Arunachal Pradesh","Ziro",null,null,null,null,null,true,41,"M/s. GNSA INFOTECH LIMITED","INR200003967"]
[4,"Assam","Barpeta",null,null,null,null,null,true,42,"MAHESHWARI DATAMATICS PRIVATE LIMITED.","INR000000353"]
[4,"Assam","Bongaigaon",null,null,null,null,null,true,43,"MAS SERVICES LIMITED","INR000000049"]
[4,"Assam","Dhubri",null,null,null,null,null,true,44,"MCS LIMITED","INR000000056"]
[4,"Assam","Dibrugarh",null,null,null,null,null,true,45,"MCS SHARE TRANSFER AGENT LTD.","INR000004108"]
[4,"Assam","Diphu",null,null,null,null,null,true,46,"MENNEN FINANCIAL SERVICES LTD.","INR000002839"]
[4,"Assam","Goalpara",null,null,null,null,null,true,47,"MF UTILITIES INDIA PVT. LTD.","INR000004157"]
[4,"Assam","Golaghat",null,null,null,null,null,true,48,"MUFG Intime India Private Limited","INR000004058"]
[4,"Assam","Guwahati",null,null,null,null,null,true,49,"Maashitla Securities Private Limited","INR000004370"]
[4,"Assam","Haflong",null,null,null,null,null,true,50,"Mudra RTA Ventures Private Limited","INR000004413"]
[4,"Assam","Hailakandi",null,null,null,null,null,true,51,"NAGARJUNA FERTILIZERS AND CHEMICALS LIMITED","INR200004114"]
[4,"Assam","Jorhat",null,null,null,null,null,true,52,"NICHE TECHNOLOGIES PRIVATE LIMITED","INR000003290"]
[4,"Assam","Karimganj",null,null,null,null,null,true,53,"NIVIS CORPSERVE LLP","INR000004264"]
[4,"Assam","Kokrajhar",null,null,null,null,null,true,54,"NSDL Database Management Limited","INR000004181"]
[4,"Assam","Mangaldoi",null,null,null,null,null,true,55,"PURVA SHAREGISTRY (INDIA) P LTD (BUSICOMP SOFTWARE CONSULTANTS","INR000001112"]
[4,"Assam","Nagaon",null,null,null,null,null,true,56,"R & D INFOTECH PVT LTD","INR000003985"]
[4,"Assam","North Lakhimpur",null,null,null,null,null,true,57,"RCMC SHARE REGISTRY PVT LTD.","INR000000429"]
[4,"Assam","Silchar",null,null,null,null,null,true,58,"S. K. COMPUTERS","INR000003886"]
[4,"Assam","Sivasagar",null,null,null,null,null,true,59,"SABI VINIYOG PRIVATE LTD","INR000004025"]
[4,"Assam","Tezpur",null,null,null,null,null,true,60,"SATELLITE CORPORATE SERVICES PRIVATE LTD","INR000003639"]
[4,"Assam","Tinsukia",null,null,null,null,null,true,61,"SHAREPRO SERVICES INDIA PVT LTD.","INR000001476"]
[5,"Bihar","Arrah",null,null,null,null,null,true,62,"SHAREX DYNAMIC (INDIA) PVT. LTD(FORMERLY SHAREX INDIA P LTD)","INR000002102"]
[5,"Bihar","Aurangabad",null,null,null,null,null,true,63,"SHRIRAM INSIGHT SHRAE BROKERS LTD.","INR000004132"]
[5,"Bihar","Bagaha",null,null,null,null,null,true,64,"SKDC CONSULTANTS LTD.","INR000000775"]
[5,"Bihar","Begusarai",null,null,null,null,null,true,65,"SKYLINE FINANCIAL SERVICES PVT. LTD.","INR000003241"]
[5,"Bihar","Bettiah",null,null,null,null,null,true,66,"SUNDARAM BNP PARIBAS FUND SERVICES LIMITED.(FORMERLY SUNDARAM SECURITIES SERVICES LIMITED)","INR000004066"]
[5,"Bihar","Bhagalpur",null,null,null,null,null,true,67,"SUNDARAM CLAYTON LTD","INR200003942"]
[5,"Bihar","Bihar Sharif",null,null,null,null,null,true,68,"SYSTEM SUPPORT SERVICES","INR000000502"]
[5,"Bihar","Buxar",null,null,null,null,null,true,69,"Sarthak Global Limited","INR000002441"]
[5,"Bihar","Chapra",null,null,null,null,null,true,70,"THE INDIAN HOTELS COMPANY LIMITED","INR000003746"]
[5,"Bihar","Darbhanga",null,null,null,null,null,{"$f":"D73=N72","v":true},71,"TSR Darashaw Limited","INR000004009"]
[5,"Bihar","Dehri",null,null,null,null,null,true,72,"UNIVERSAL CAPITAL SECURITIES PRIVATE LIMITED (FORMERLY MONDKAR COMPUTERS PRIVATE LIMITED)","INR000004082"]
[5,"Bihar","Gaya",null,null,null,null,null,true,73,"UTI INFRASTRUCTURE TECHNOLOGY AND SERVICES LTD. (FORMERLY UTI TECHNOLOGY SERVICES LTD.)","INR000001211"]
[5,"Bihar","Hajipur",null,null,null,null,null,true,74,"VENTURE CAPITAL AND CORPORATE INVESTMENTS LTD","INR000001203"]
[5,"Bihar","Jahanabad",null,null,null,null,null,true,75,"XL SOFTECH SYSTEMS LTD.","INR000000254"]
[5,"Bihar","Katihar",null,null,null,null,null,true,76,"ZUARI INVESTMENTS LIMITED","INR000003902"]
[5,"Bihar","Kishanganj",null,null,null,null,null,true]
[5,"Bihar","Madhubani",null,null,null,null,null,true]
[5,"Bihar","Motihari",null,null,null,null,null,true]
[5,"Bihar","Munger",null,null,null,null,null,true]
[5,"Bihar","Muzaffarpur",null,null,null,null,null,true]
[5,"Bihar","Nalanda",null,null,null,null,null,true]
[5,"Bihar","Nawada",null,null,null,null,null,true]
[5,"Bihar","Patna",null,null,null,null,null,true]
[5,"Bihar","Purnia",null,null,null,null,null,true]
[5,"Bihar","Samastipur",null,null,null,null,null,true]
[5,"Bihar","Sasaram",null,null,null,null,null,true]
[5,"Bihar","Sheikhpura",null,null,null,null,null,true]
[5,"Bihar","Sitamarhi",null,null,null,null,null,true]
[5,"Bihar","Siwan",null,null,null,null,null,true]
[5,"Bihar","Supaul",null,null,null,null,null,true]
[6,"Chandigarh","Chandigarh",null,null,null,null,null,true]
[7,"Chhattisgarh","Ambikapur",null,null,null,null,null,true]
[7,"Chhattisgarh","Bhatapara",null,null,null,null,null,true]
[7,"Chhattisgarh","Bhilai",null,null,null,null,null,true]
[7,"Chhattisgarh","Bijapur",null,null,null,null,null,true]
[7,"Chhattisgarh","Bilaspur",null,null,null,null,null,true]
[7,"Chhattisgarh","Chirmiri",null,null,null,null,null,true]
[7,"Chhattisgarh","Dhamtari",null,null,null,null,null,true]
[7,"Chhattisgarh","Durg",null,null,null,null,null,true]
[7,"Chhattisgarh","Jagdalpur",null,null,null,null,null,true]
[7,"Chhattisgarh","Kanker",null,null,null,null,null,true]
[7,"Chhattisgarh","Kawardha",null,null,null,null,null,true]
[7,"Chhattisgarh","Kondagaon",null,null,null,null,null,true]
[7,"Chhattisgarh","Korba",null,null,null,null,null,true]
[7,"Chhattisgarh","Mahasamund",null,null,null,null,null,true]
[7,"Chhattisgarh","Narayanpur",null,null,null,null,null,true]
[7,"Chhattisgarh","Raigarh",null,null,null,null,null,true]
[7,"Chhattisgarh","Raipur",null,null,null,null,null,true]
[7,"Chhattisgarh","Rajnandgaon",null,null,null,null,null,true]
[7,"Dadra & Nagar Haveli and Daman & Diu","Daman",null,null,null,null,null,true]
[7,"Dadra & Nagar Haveli and Daman & Diu","Diu",null,null,null,null,null,true]
[7,"Dadra & Nagar Haveli and Daman & Diu","Silvassa",null,null,null,null,null,true]
[8,"Delhi","Delhi",null,null,null,null,null,true]
[8,"Delhi","Dwarka",null,null,null,null,null,true]
[8,"Delhi","Janakpuri",null,null,null,null,null,true]
[8,"Delhi","Lajpat Nagar",null,null,null,null,null,true]
[8,"Delhi","New Delhi",null,null,null,null,null,true]
[8,"Delhi","Pitampura",null,null,null,null,null,true]
[8,"Delhi","Rohini",null,null,null,null,null,true]
[8,"Delhi","Shahdara",null,null,null,null,null,true]
[9,"Goa","Bicholim",null,null,null,null,null,true]
[9,"Goa","Canacona",null,null,null,null,null,true]
[9,"Goa","Curchorem",null,null,null,null,null,true]
[9,"Goa","Mapusa",null,null,null,null,null,true]
[9,"Goa","Margao",null,null,null,null,null,true]
[9,"Goa","Panaji",null,null,null,null,null,true]
[9,"Goa","Pernem",null,null,null,null,null,true]
[9,"Goa","Ponda",null,null,null,null,null,true]
[9,"Goa","Sanquelim",null,null,null,null,null,true]
[9,"Goa","Vasco da Gama",null,null,null,null,null,true]
[10,"Gujarat","Ahmedabad",null,null,null,null,null,true]
[10,"Gujarat","Amreli",null,null,null,null,null,true]
[10,"Gujarat","Anand",null,null,null,null,null,true]
[10,"Gujarat","Ankleshwar",null,null,null,null,null,{"$f":"D137=N136","v":true}]
[10,"Gujarat","Bharuch",null,null,null,null,null,true]
[10,"Gujarat","Bhavnagar",null,null,null,null,null,true]
[10,"Gujarat","Botad",null,null,null,null,null,true]
[10,"Gujarat","Dahod",null,null,null,null,null,true]
[10,"Gujarat","Dwarka",null,null,null,null,null,true]
[10,"Gujarat","Gandhidham",null,null,null,null,null,true]
[10,"Gujarat","Gandhinagar",null,null,null,null,null,true]
[10,"Gujarat","Godhra",null,null,null,null,null,true]
[10,"Gujarat","Gondal",null,null,null,null,null,true]
[10,"Gujarat","Jamnagar",null,null,null,null,null,true]
[10,"Gujarat","Junagadh",null,null,null,null,null,true]
[10,"Gujarat","Mehsana",null,null,null,null,null,true]
[10,"Gujarat","Morbi",null,null,null,null,null,true]
[10,"Gujarat","Nadiad",null,null,null,null,null,true]
[10,"Gujarat","Navsari",null,null,null,null,null,true]
[10,"Gujarat","Palanpur",null,null,null,null,null,true]
[10,"Gujarat","Patan",null,null,null,null,null,true]
[10,"Gujarat","Porbandar",null,null,null,null,null,true]
[10,"Gujarat","Rajkot",null,null,null,null,null,true]
[10,"Gujarat","Somnath",null,null,null,null,null,true]
[10,"Gujarat","Surat",null,null,null,null,null,true]
[10,"Gujarat","Surendranagar",null,null,null,null,null,true]
[10,"Gujarat","Vadodara",null,null,null,null,null,true]
[10,"Gujarat","Valsad",null,null,null,null,null,true]
[10,"Gujarat","Vapi",null,null,null,null,null,true]
[10,"Gujarat","Veraval",null,null,null,null,null,true]
[11,"Haryana","Ambala",null,null,null,null,null,true]
[11,"Haryana","Bahadurgarh",null,null,null,null,null,true]
[11,"Haryana","Bhiwani",null,null,null,null,null,true]
[11,"Haryana","Faridabad",null,null,null,null,null,true]
[11,"Haryana","Fatehabad",null,null,null,null,null,true]
[11,"Haryana","Gurugram",null,null,null,null,null,true]
[11,"Haryana","Hansi",null,null,null,null,null,true]
[11,"Haryana","Hisar",null,null,null,null,null,true]
[11,"Haryana","Jhajjar",null,null,null,null,null,true]
[11,"Haryana","Jind",null,null,null,null,null,true]
[11,"Haryana","Kaithal",null,null,null,null,null,true]
[11,"Haryana","Karnal",null,null,null,null,null,true]
[11,"Haryana","Narnaul",null,null,null,null,null,true]
[11,"Haryana","Nuh",null,null,null,null,null,true]
[11,"Haryana","Palwal",null,null,null,null,null,true]
[11,"Haryana","Panchkula",null,null,null,null,null,true]
[11,"Haryana","Panipat",null,null,null,null,null,true]
[11,"Haryana","Rewari",null,null,null,null,null,true]
[11,"Haryana","Rohtak",null,null,null,null,null,true]
[11,"Haryana","Sirsa",null,null,null,null,null,true]
[11,"Haryana","Sonipat",null,null,null,null,null,true]
[11,"Haryana","Thanesar",null,null,null,null,null,true]
[11,"Haryana","Yamunanagar",null,null,null,null,null,true]
[11,"Haryana","Baddi",null,null,null,null,null,true]
[11,"Haryana","Bilaspur",null,null,null,null,null,true]
[11,"Haryana","Chamba",null,null,null,null,null,true]
[11,"Haryana","Dharamshala",null,null,null,null,null,true]
[11,"Haryana","Hamirpur",null,null,null,null,null,true]
[11,"Haryana","Keylong",null,null,null,null,null,true]
[11,"Haryana","Kullu",null,null,null,null,null,true]
[11,"Haryana","Manali",null,null,null,null,null,true]
[11,"Haryana","Mandi",null,null,null,null,null,true]
[11,"Haryana","Nahan",null,null,null,null,null,true]
[11,"Haryana","Palampur",null,null,null,null,null,true]
[11,"Haryana","Rampur",null,null,null,null,null,true]
[11,"Haryana","Recong Peo",null,null,null,null,null,true]
[11,"Haryana","Shimla",null,null,null,null,null,true]
[11,"Haryana","Solan",null,null,null,null,null,{"$f":"D201=N200","v":true}]
[11,"Haryana","Sundarnagar",null,null,null,null,null,true]
[11,"Haryana","Una",null,null,null,null,null,true]
[13,"Jammu & Kashmir","Anantnag",null,null,null,null,null,true]
[13,"Jammu & Kashmir","Baramulla",null,null,null,null,null,true]
[13,"Jammu & Kashmir","Jammu",null,null,null,null,null,true]
[13,"Jammu & Kashmir","Kathua",null,null,null,null,null,true]
[13,"Jammu & Kashmir","Sopore",null,null,null,null,null,true]
[13,"Jammu & Kashmir","Srinagar",null,null,null,null,null,true]
[13,"Jammu & Kashmir","Udhampur",null,null,null,null,null,true]
[14,"Jharkhand","Bokaro",null,null,null,null,null,true]
[14,"Jharkhand","Chaibasa",null,null,null,null,null,true]
[14,"Jharkhand","Chirkunda",null,null,null,null,null,true]
[14,"Jharkhand","Deoghar",null,null,null,null,null,true]
[14,"Jharkhand","Dhanbad",null,null,null,null,null,true]
[14,"Jharkhand","Dumka",null,null,null,null,null,true]
[14,"Jharkhand","Giridih",null,null,null,null,null,true]
[14,"Jharkhand","Gumla",null,null,null,null,null,true]
[14,"Jharkhand","Hazaribagh",null,null,null,null,null,true]
[14,"Jharkhand","Jamshedpur",null,null,null,null,null,true]
[14,"Jharkhand","Lohardaga",null,null,null,null,null,true]
[14,"Jharkhand","Medininagar",null,null,null,null,null,true]
[14,"Jharkhand","Pakur",null,null,null,null,null,true]
[14,"Jharkhand","Palamu",null,null,null,null,null,true]
[14,"Jharkhand","Phusro",null,null,null,null,null,true]
[14,"Jharkhand","Ramgarh",null,null,null,null,null,true]
[14,"Jharkhand","Ranchi",null,null,null,null,null,true]
[14,"Jharkhand","Sahibganj",null,null,null,null,null,true]
[14,"Jharkhand","Simdega",null,null,null,null,null,true]
[15,"Karnataka","Bagalkot",null,null,null,null,null,true]
[15,"Karnataka","Ballari",null,null,null,null,null,true]
[15,"Karnataka","Bantwal",null,null,null,null,null,true]
[15,"Karnataka","Belagavi",null,null,null,null,null,true]
[15,"Karnataka","Bengaluru",null,null,null,null,null,true]
[15,"Karnataka","Bidar",null,null,null,null,null,true]
[15,"Karnataka","Chamarajanagar",null,null,null,null,null,true]
[15,"Karnataka","Chikkamagaluru",null,null,null,null,null,true]
[15,"Karnataka","Chitradurga",null,null,null,null,null,true]
[15,"Karnataka","Davanagere",null,null,null,null,null,true]
[15,"Karnataka","Dharwad",null,null,null,null,null,true]
[15,"Karnataka","Gadag",null,null,null,null,null,true]
[15,"Karnataka","Hassan",null,null,null,null,null,true]
[15,"Karnataka","Haveri",null,null,null,null,null,true]
[15,"Karnataka","Hospet",null,null,null,null,null,true]
[15,"Karnataka","Hubli",null,null,null,null,null,true]
[15,"Karnataka","Kalaburagi",null,null,null,null,null,true]
[15,"Karnataka","Kodagu",null,null,null,null,null,true]
[15,"Karnataka","Kolar",null,null,null,null,null,true]
[15,"Karnataka","Koppal",null,null,null,null,null,true]
[15,"Karnataka","Mandya",null,null,null,null,null,true]
[15,"Karnataka","Mangaluru",null,null,null,null,null,true]
[15,"Karnataka","Mysuru",null,null,null,null,null,true]
[15,"Karnataka","Puttur",null,null,null,null,null,true]
[15,"Karnataka","Raichur",null,null,null,null,null,true]
[15,"Karnataka","Ramanagara",null,null,null,null,null,true]
[15,"Karnataka","Shivamogga",null,null,null,null,null,true]
[15,"Karnataka","Sirsi",null,null,null,null,null,true]
[15,"Karnataka","Tumkur",null,null,null,null,null,true]
[15,"Karnataka","Udupi",null,null,null,null,null,true]
[15,"Karnataka","Vijayapura",null,null,null,null,null,true]
[15,"Karnataka","Yadgir",null,null,null,null,null,true]
[16,"Kerala","Alappuzha",null,null,null,null,null,true]
[16,"Kerala","Chalakudy",null,null,null,null,null,true]
[16,"Kerala","Ernakulam",null,null,null,null,null,true]
[16,"Kerala","Guruvayur",null,null,null,null,null,{"$f":"D265=N264","v":true}]
[16,"Kerala","Idukki",null,null,null,null,null,true]
[16,"Kerala","Kannur",null,null,null,null,null,true]
[16,"Kerala","Kasaragod",null,null,null,null,null,true]
[16,"Kerala","Kayamkulam",null,null,null,null,null,true]
[16,"Kerala","Kochi",null,null,null,null,null,true]
[16,"Kerala","Kodungallur",null,null,null,null,null,true]
[16,"Kerala","Kollam",null,null,null,null,null,true]
[16,"Kerala","Kottayam",null,null,null,null,null,true]
[16,"Kerala","Kozhikode",null,null,null,null,null,true]
[16,"Kerala","Malappuram",null,null,null,null,null,true]
[16,"Kerala","Manjeri",null,null,null,null,null,true]
[16,"Kerala","Palakkad",null,null,null,null,null,true]
[16,"Kerala","Pathanamthitta",null,null,null,null,null,true]
[16,"Kerala","Perinthalmanna",null,null,null,null,null,true]
[16,"Kerala","Ponnani",null,null,null,null,null,true]
[16,"Kerala","Thalassery",null,null,null,null,null,true]
[16,"Kerala","Thiruvananthapuram",null,null,null,null,null,true]
[16,"Kerala","Thrissur",null,null,null,null,null,true]
[16,"Kerala","Tirur",null,null,null,null,null,true]
[16,"Kerala","Vatakara",null,null,null,null,null,true]
[16,"Kerala","Wayanad",null,null,null,null,null,true]
[17,"Ladakh","Kargil",null,null,null,null,null,true]
[17,"Ladakh","Leh",null,null,null,null,null,true]
[18,"Lakshadweep","Agatti",null,null,null,null,null,true]
[18,"Lakshadweep","Amini",null,null,null,null,null,true]
[18,"Lakshadweep","Kavaratti",null,null,null,null,null,true]
[19,"Madhya Pradesh","Balaghat",null,null,null,null,null,true]
[19,"Madhya Pradesh","Betul",null,null,null,null,null,true]
[19,"Madhya Pradesh","Bhind",null,null,null,null,null,true]
[19,"Madhya Pradesh","Bhopal",null,null,null,null,null,true]
[19,"Madhya Pradesh","Burhanpur",null,null,null,null,null,true]
[19,"Madhya Pradesh","Chhatarpur",null,null,null,null,null,true]
[19,"Madhya Pradesh","Chhindwara",null,null,null,null,null,true]
[19,"Madhya Pradesh","Damoh",null,null,null,null,null,true]
[19,"Madhya Pradesh","Datia",null,null,null,null,null,true]
[19,"Madhya Pradesh","Dewas",null,null,null,null,null,true]
[19,"Madhya Pradesh","Guna",null,null,null,null,null,true]
[19,"Madhya Pradesh","Gwalior",null,null,null,null,null,true]
[19,"Madhya Pradesh","Hoshangabad",null,null,null,null,null,true]
[19,"Madhya Pradesh","Indore",null,null,null,null,null,true]
[19,"Madhya Pradesh","Itarsi",null,null,null,null,null,true]
[19,"Madhya Pradesh","Jabalpur",null,null,null,null,null,true]
[19,"Madhya Pradesh","Khandwa",null,null,null,null,null,true]
[19,"Madhya Pradesh","Khargone",null,null,null,null,null,true]
[19,"Madhya Pradesh","Mandsaur",null,null,null,null,null,true]
[19,"Madhya Pradesh","Morena",null,null,null,null,null,true]
[19,"Madhya Pradesh","Murwara",null,null,null,null,null,true]
[19,"Madhya Pradesh","Narsimhapur",null,null,null,null,null,true]
[19,"Madhya Pradesh","Neemuch",null,null,null,null,null,true]
[19,"Madhya Pradesh","Pithampur",null,null,null,null,null,true]
[19,"Madhya Pradesh","Ratlam",null,null,null,null,null,true]
[19,"Madhya Pradesh","Rewa",null,null,null,null,null,true]
[19,"Madhya Pradesh","Sagar",null,null,null,null,null,true]
[19,"Madhya Pradesh","Satna",null,null,null,null,null,true]
[19,"Madhya Pradesh","Seoni",null,null,null,null,null,true]
[19,"Madhya Pradesh","Shahdol",null,null,null,null,null,true]
[19,"Madhya Pradesh","Shajapur",null,null,null,null,null,true]
[19,"Madhya Pradesh","Shivpuri",null,null,null,null,null,true]
[19,"Madhya Pradesh","Singrauli",null,null,null,null,null,true]
[19,"Madhya Pradesh","Tikamgarh",null,null,null,null,null,true]
[19,"Madhya Pradesh","Ujjain",null,null,null,null,null,true]
[19,"Madhya Pradesh","Vidisha",null,null,null,null,null,true]
[20,"Maharashtra","Ahmednagar",null,null,null,null,null,true]
[20,"Maharashtra","Akola",null,null,null,null,null,{"$f":"D329=N328","v":true}]
[20,"Maharashtra","Amravati",null,null,null,null,null,true]
[20,"Maharashtra","Aurangabad",null,null,null,null,null,true]
[20,"Maharashtra","Bhiwandi",null,null,null,null,null,true]
[20,"Maharashtra","Bid",null,null,null,null,null,true]
[20,"Maharashtra","Buldana",null,null,null,null,null,true]
[20,"Maharashtra","Chandrapur",null,null,null,null,null,true]
[20,"Maharashtra","Dhule",null,null,null,null,null,true]
[20,"Maharashtra","Gadchiroli",null,null,null,null,null,true]
[20,"Maharashtra","Gondia",null,null,null,null,null,true]
[20,"Maharashtra","Hingoli",null,null,null,null,null,true]
[20,"Maharashtra","Jalgaon",null,null,null,null,null,true]
[20,"Maharashtra","Jalna",null,null,null,null,null,true]
[20,"Maharashtra","Kalyan",null,null,null,null,null,true]
[20,"Maharashtra","Kolhapur",null,null,null,null,null,true]
[20,"Maharashtra","Latur",null,null,null,null,null,true]
[20,"Maharashtra","Malegaon",null,null,null,null,null,true]
[20,"Maharashtra","Mira-Bhayandar",null,null,null,null,null,true]
[20,"Maharashtra","Mumbai",null,null,null,null,null,true]
[20,"Maharashtra","Nagpur",null,null,null,null,null,true]
[20,"Maharashtra","Nanded",null,null,null,null,null,true]
[20,"Maharashtra","Nandurbar",null,null,null,null,null,true]
[20,"Maharashtra","Nashik",null,null,null,null,null,true]
[20,"Maharashtra","Osmanabad",null,null,null,null,null,true]
[20,"Maharashtra","Panvel",null,null,null,null,null,true]
[20,"Maharashtra","Parbhani",null,null,null,null,null,true]
[20,"Maharashtra","Pimpri-Chinchwad",null,null,null,null,null,true]
[20,"Maharashtra","Pune",null,null,null,null,null,true]
[20,"Maharashtra","Ratnagiri",null,null,null,null,null,true]
[20,"Maharashtra","Sangli",null,null,null,null,null,true]
[20,"Maharashtra","Satara",null,null,null,null,null,true]
[20,"Maharashtra","Sindhudurg",null,null,null,null,null,true]
[20,"Maharashtra","Solapur",null,null,null,null,null,true]
[20,"Maharashtra","Thane",null,null,null,null,null,true]
[20,"Maharashtra","Ulhasnagar",null,null,null,null,null,true]
[20,"Maharashtra","Vasai-Virar",null,null,null,null,null,true]
[20,"Maharashtra","Wardha",null,null,null,null,null,true]
[20,"Maharashtra","Washim",null,null,null,null,null,true]
[20,"Maharashtra","Yavatmal",null,null,null,null,null,true]
[21,"Manipur","Bishnupur",null,null,null,null,null,true]
[21,"Manipur","Chandel",null,null,null,null,null,true]
[21,"Manipur","Churachandpur",null,null,null,null,null,true]
[21,"Manipur","Imphal",null,null,null,null,null,true]
[21,"Manipur","Senapati",null,null,null,null,null,true]
[21,"Manipur","Tamenglong",null,null,null,null,null,true]
[21,"Manipur","Thoubal",null,null,null,null,null,true]
[21,"Manipur","Ukhrul",null,null,null,null,null,true]
[22,"Meghalaya","Baghmara",null,null,null,null,null,true]
[22,"Meghalaya","Jowai",null,null,null,null,null,true]
[22,"Meghalaya","Nongstoin",null,null,null,null,null,true]
[22,"Meghalaya","Resubelpara",null,null,null,null,null,true]
[22,"Meghalaya","Shillong",null,null,null,null,null,true]
[22,"Meghalaya","Tura",null,null,null,null,null,true]
[22,"Meghalaya","Williamnagar",null,null,null,null,null,true]
[23,"Mizoram","Aizawl",null,null,null,null,null,true]
[23,"Mizoram","Champhai",null,null,null,null,null,true]
[23,"Mizoram","Kolasib",null,null,null,null,null,true]
[23,"Mizoram","Lawngtlai",null,null,null,null,null,true]
[23,"Mizoram","Lunglei",null,null,null,null,null,true]
[23,"Mizoram","Saiha",null,null,null,null,null,true]
[23,"Mizoram","Serchhip",null,null,null,null,null,true]
[24,"Nagaland","Dimapur",null,null,null,null,null,true]
[24,"Nagaland","Kohima",null,null,null,null,null,true]
[24,"Nagaland","Mokokchung",null,null,null,null,null,true]
[24,"Nagaland","Mon",null,null,null,null,null,{"$f":"D393=N392","v":true}]
[24,"Nagaland","Phek",null,null,null,null,null,true]
[24,"Nagaland","Tuensang",null,null,null,null,null,true]
[24,"Nagaland","Wokha",null,null,null,null,null,true]
[24,"Nagaland","Zunheboto",null,null,null,null,null,true]
[25,"Odisha","Angul",null,null,null,null,null,true]
[25,"Odisha","Balasore",null,null,null,null,null,true]
[25,"Odisha","Barbil",null,null,null,null,null,true]
[25,"Odisha","Bargarh",null,null,null,null,null,true]
[25,"Odisha","Baripada",null,null,null,null,null,true]
[25,"Odisha","Bhadrak",null,null,null,null,null,true]
[25,"Odisha","Bhawanipatna",null,null,null,null,null,true]
[25,"Odisha","Bhubaneswar",null,null,null,null,null,true]
[25,"Odisha","Bolangir",null,null,null,null,null,true]
[25,"Odisha","Brahmapur",null,null,null,null,null,true]
[25,"Odisha","Cuttack",null,null,null,null,null,true]
[25,"Odisha","Dhenkanal",null,null,null,null,null,true]
[25,"Odisha","Jagatsinghpur",null,null,null,null,null,true]
[25,"Odisha","Jajpur",null,null,null,null,null,true]
[25,"Odisha","Jeypore",null,null,null,null,null,true]
[25,"Odisha","Jharsuguda",null,null,null,null,null,true]
[25,"Odisha","Kendrapara",null,null,null,null,null,true]
[25,"Odisha","Kendujhar",null,null,null,null,null,true]
[25,"Odisha","Koraput",null,null,null,null,null,true]
[25,"Odisha","Malkangiri",null,null,null,null,null,true]
[25,"Odisha","Nabarangpur",null,null,null,null,null,true]
[25,"Odisha","Nayagarh",null,null,null,null,null,true]
[25,"Odisha","Phulbani",null,null,null,null,null,true]
[25,"Odisha","Puri",null,null,null,null,null,true]
[25,"Odisha","Rayagada",null,null,null,null,null,true]
[25,"Odisha","Rourkela",null,null,null,null,null,true]
[25,"Odisha","Sambalpur",null,null,null,null,null,true]
[25,"Odisha","Sundargarh",null,null,null,null,null,true]
[26,"Puducherry","Karaikal",null,null,null,null,null,true]
[26,"Puducherry","Mahe",null,null,null,null,null,true]
[26,"Puducherry","Puducherry",null,null,null,null,null,true]
[26,"Puducherry","Yanam",null,null,null,null,null,true]
[27,"Punjab","Abohar",null,null,null,null,null,true]
[27,"Punjab","Amritsar",null,null,null,null,null,true]
[27,"Punjab","Barnala",null,null,null,null,null,true]
[27,"Punjab","Batala",null,null,null,null,null,true]
[27,"Punjab","Bathinda",null,null,null,null,null,true]
[27,"Punjab","Faridkot",null,null,null,null,null,true]
[27,"Punjab","Firozpur",null,null,null,null,null,true]
[27,"Punjab","Hoshiarpur",null,null,null,null,null,true]
[27,"Punjab","Jalandhar",null,null,null,null,null,true]
[27,"Punjab","Kapurthala",null,null,null,null,null,true]
[27,"Punjab","Khanna",null,null,null,null,null,true]
[27,"Punjab","Ludhiana",null,null,null,null,null,true]
[27,"Punjab","Malerkotla",null,null,null,null,null,true]
[27,"Punjab","Mansa",null,null,null,null,null,true]
[27,"Punjab","Moga",null,null,null,null,null,true]
[27,"Punjab","Mohali",null,null,null,null,null,true]
[27,"Punjab","Muktsar",null,null,null,null,null,true]
[27,"Punjab","Pathankot",null,null,null,null,null,true]
[27,"Punjab","Patiala",null,null,null,null,null,true]
[27,"Punjab","Phagwara",null,null,null,null,null,true]
[27,"Punjab","Rajpura",null,null,null,null,null,true]
[27,"Punjab","Ropar",null,null,null,null,null,true]
[27,"Punjab","Sangrur",null,null,null,null,null,true]
[28,"Rajasthan","Ajmer",null,null,null,null,null,true]
[28,"Rajasthan","Alwar",null,null,null,null,null,true]
[28,"Rajasthan","Banswara",null,null,null,null,null,true]
[28,"Rajasthan","Baran",null,null,null,null,null,true]
[28,"Rajasthan","Barmer",null,null,null,null,null,{"$f":"D457=N456","v":true}]
[28,"Rajasthan","Bharatpur",null,null,null,null,null,true]
[28,"Rajasthan","Bhilwara",null,null,null,null,null,true]
[28,"Rajasthan","Bikaner",null,null,null,null,null,true]
[28,"Rajasthan","Bundi",null,null,null,null,null,true]
[28,"Rajasthan","Chittorgarh",null,null,null,null,null,true]
[28,"Rajasthan","Churu",null,null,null,null,null,true]
[28,"Rajasthan","Dausa",null,null,null,null,null,true]
[28,"Rajasthan","Dholpur",null,null,null,null,null,true]
[28,"Rajasthan","Dungarpur",null,null,null,null,null,true]
[28,"Rajasthan","Hanumangarh",null,null,null,null,null,true]
[28,"Rajasthan","Jaipur",null,null,null,null,null,true]
[28,"Rajasthan","Jaisalmer",null,null,null,null,null,true]
[28,"Rajasthan","Jhalawar",null,null,null,null,null,true]
[28,"Rajasthan","Jhunjhunu",null,null,null,null,null,true]
[28,"Rajasthan","Jodhpur",null,null,null,null,null,true]
[28,"Rajasthan","Karauli",null,null,null,null,null,true]
[28,"Rajasthan","Kota",null,null,null,null,null,true]
[28,"Rajasthan","Nagaur",null,null,null,null,null,true]
[28,"Rajasthan","Pali",null,null,null,null,null,true]
[28,"Rajasthan","Pratapgarh",null,null,null,null,null,true]
[28,"Rajasthan","Rajsamand",null,null,null,null,null,true]
[28,"Rajasthan","Sawai Madhopur",null,null,null,null,null,true]
[28,"Rajasthan","Sikar",null,null,null,null,null,true]
[28,"Rajasthan","Sirohi",null,null,null,null,null,true]
[28,"Rajasthan","Sri Ganganagar",null,null,null,null,null,true]
[28,"Rajasthan","Tonk",null,null,null,null,null,true]
[28,"Rajasthan","Udaipur",null,null,null,null,null,true]
[29,"Sikkim","Gangtok",null,null,null,null,null,true]
[29,"Sikkim","Geyzing",null,null,null,null,null,true]
[29,"Sikkim","Jorethang",null,null,null,null,null,true]
[29,"Sikkim","Mangan",null,null,null,null,null,true]
[29,"Sikkim","Namchi",null,null,null,null,null,true]
[29,"Sikkim","Rangpo",null,null,null,null,null,true]
[30,"Tamil Nadu","Ariyalur",null,null,null,null,null,true]
[30,"Tamil Nadu","Chennai",null,null,null,null,null,true]
[30,"Tamil Nadu","Coimbatore",null,null,null,null,null,true]
[30,"Tamil Nadu","Cuddalore",null,null,null,null,null,true]
[30,"Tamil Nadu","Dindigul",null,null,null,null,null,true]
[30,"Tamil Nadu","Erode",null,null,null,null,null,true]
[30,"Tamil Nadu","Gudiyatham",null,null,null,null,null,true]
[30,"Tamil Nadu","Hosur",null,null,null,null,null,true]
[30,"Tamil Nadu","Kanchipuram",null,null,null,null,null,true]
[30,"Tamil Nadu","Karaikkudi",null,null,null,null,null,true]
[30,"Tamil Nadu","Karur",null,null,null,null,null,true]
[30,"Tamil Nadu","Kumarapalayam",null,null,null,null,null,true]
[30,"Tamil Nadu","Kumbakonam",null,null,null,null,null,true]
[30,"Tamil Nadu","Madurai",null,null,null,null,null,true]
[30,"Tamil Nadu","Nagapattinam",null,null,null,null,null,true]
[30,"Tamil Nadu","Nagercoil",null,null,null,null,null,true]
[30,"Tamil Nadu","Namakkal",null,null,null,null,null,true]
[30,"Tamil Nadu","Neyveli",null,null,null,null,null,true]
[30,"Tamil Nadu","Pollachi",null,null,null,null,null,true]
[30,"Tamil Nadu","Pudukkottai",null,null,null,null,null,true]
[30,"Tamil Nadu","Rajapalayam",null,null,null,null,null,true]
[30,"Tamil Nadu","Ranipet",null,null,null,null,null,true]
[30,"Tamil Nadu","Salem",null,null,null,null,null,true]
[30,"Tamil Nadu","Sivakasi",null,null,null,null,null,true]
[30,"Tamil Nadu","Tenkasi",null,null,null,null,null,true]
[30,"Tamil Nadu","Thanjavur",null,null,null,null,null,true]
[30,"Tamil Nadu","Thoothukkudi",null,null,null,null,null,true]
[30,"Tamil Nadu","Tiruchirappalli",null,null,null,null,null,true]
[30,"Tamil Nadu","Tirunelveli",null,null,null,null,null,true]
[30,"Tamil Nadu","Tiruppur",null,null,null,null,null,true]
[30,"Tamil Nadu","Tiruvannamalai",null,null,null,null,null,{"$f":"D521=N520","v":true}]
[30,"Tamil Nadu","Tiruvottiyur",null,null,null,null,null,true]
[30,"Tamil Nadu","Udhagamandalam",null,null,null,null,null,true]
[30,"Tamil Nadu","Vellore",null,null,null,null,null,true]
[30,"Tamil Nadu","Viluppuram",null,null,null,null,null,true]
[31,"Telangana","Adilabad",null,null,null,null,null,true]
[31,"Telangana","Bhadrachalam",null,null,null,null,null,true]
[31,"Telangana","Bodhan",null,null,null,null,null,true]
[31,"Telangana","Hyderabad",null,null,null,null,null,true]
[31,"Telangana","Jagtial",null,null,null,null,null,true]
[31,"Telangana","Karimnagar",null,null,null,null,null,true]
[31,"Telangana","Khammam",null,null,null,null,null,true]
[31,"Telangana","Kothagudem",null,null,null,null,null,true]
[31,"Telangana","Mahbubnagar",null,null,null,null,null,true]
[31,"Telangana","Mancherial",null,null,null,null,null,true]
[31,"Telangana","Miryalaguda",null,null,null,null,null,true]
[31,"Telangana","Nalgonda",null,null,null,null,null,true]
[31,"Telangana","Nirmal",null,null,null,null,null,true]
[31,"Telangana","Nizamabad",null,null,null,null,null,true]
[31,"Telangana","Ramagundam",null,null,null,null,null,true]
[31,"Telangana","Sangareddy",null,null,null,null,null,true]
[31,"Telangana","Siddipet",null,null,null,null,null,true]
[31,"Telangana","Suryapet",null,null,null,null,null,true]
[31,"Telangana","Vikarabad",null,null,null,null,null,true]
[31,"Telangana","Warangal",null,null,null,null,null,true]
[32,"Tripura","Agartala",null,null,null,null,null,true]
[32,"Tripura","Ambassa",null,null,null,null,null,true]
[32,"Tripura","Belonia",null,null,null,null,null,true]
[32,"Tripura","Dharmanagar",null,null,null,null,null,true]
[32,"Tripura","Kailashahar",null,null,null,null,null,true]
[32,"Tripura","Sabroom",null,null,null,null,null,true]
[32,"Tripura","Udaipur",null,null,null,null,null,true]
[33,"Uttar Pradesh","Agra",null,null,null,null,null,true]
[33,"Uttar Pradesh","Aligarh",null,null,null,null,null,true]
[33,"Uttar Pradesh","Amroha",null,null,null,null,null,true]
[33,"Uttar Pradesh","Azamgarh",null,null,null,null,null,true]
[33,"Uttar Pradesh","Badaun",null,null,null,null,null,true]
[33,"Uttar Pradesh","Baghpat",null,null,null,null,null,true]
[33,"Uttar Pradesh","Bahraich",null,null,null,null,null,true]
[33,"Uttar Pradesh","Ballia",null,null,null,null,null,true]
[33,"Uttar Pradesh","Banda",null,null,null,null,null,true]
[33,"Uttar Pradesh","Bareilly",null,null,null,null,null,true]
[33,"Uttar Pradesh","Basti",null,null,null,null,null,true]
[33,"Uttar Pradesh","Bijnaur",null,null,null,null,null,true]
[33,"Uttar Pradesh","Bulandshahr",null,null,null,null,null,true]
[33,"Uttar Pradesh","Chandauli",null,null,null,null,null,true]
[33,"Uttar Pradesh","Deoria",null,null,null,null,null,true]
[33,"Uttar Pradesh","Etah",null,null,null,null,null,true]
[33,"Uttar Pradesh","Etawah",null,null,null,null,null,true]
[33,"Uttar Pradesh","Faizabad",null,null,null,null,null,true]
[33,"Uttar Pradesh","Farrukhabad",null,null,null,null,null,true]
[33,"Uttar Pradesh","Fatehpur",null,null,null,null,null,true]
[33,"Uttar Pradesh","Firozabad",null,null,null,null,null,true]
[33,"Uttar Pradesh","Ghaziabad",null,null,null,null,null,true]
[33,"Uttar Pradesh","Gonda",null,null,null,null,null,true]
[33,"Uttar Pradesh","Gorakhpur",null,null,null,null,null,true]
[33,"Uttar Pradesh","Hapur",null,null,null,null,null,true]
[33,"Uttar Pradesh","Hardoi",null,null,null,null,null,true]
[33,"Uttar Pradesh","Hathras",null,null,null,null,null,true]
[33,"Uttar Pradesh","Jaunpur",null,null,null,null,null,true]
[33,"Uttar Pradesh","Jhansi",null,null,null,null,null,true]
[33,"Uttar Pradesh","Kanpur",null,null,null,null,null,true]
[33,"Uttar Pradesh","Kushinagar",null,null,null,null,null,true]
[33,"Uttar Pradesh","Lakhimpur",null,null,null,null,null,true]
[33,"Uttar Pradesh","Lucknow",null,null,null,null,null,{"$f":"D585=N584","v":true}]
[33,"Uttar Pradesh","Mainpuri",null,null,null,null,null,true]
[33,"Uttar Pradesh","Mathura",null,null,null,null,null,true]
[33,"Uttar Pradesh","Mau",null,null,null,null,null,true]
[33,"Uttar Pradesh","Meerut",null,null,null,null,null,true]
[33,"Uttar Pradesh","Mirzapur",null,null,null,null,null,true]
[33,"Uttar Pradesh","Moradabad",null,null,null,null,null,true]
[33,"Uttar Pradesh","Muzaffarnagar",null,null,null,null,null,true]
[33,"Uttar Pradesh","Noida",null,null,null,null,null,true]
[33,"Uttar Pradesh","Pilibhit",null,null,null,null,null,true]
[33,"Uttar Pradesh","Pratapgarh",null,null,null,null,null,true]
[33,"Uttar Pradesh","Prayagraj",null,null,null,null,null,true]
[33,"Uttar Pradesh","Raebareli",null,null,null,null,null,true]
[33,"Uttar Pradesh","Rampur",null,null,null,null,null,true]
[33,"Uttar Pradesh","Saharanpur",null,null,null,null,null,true]
[33,"Uttar Pradesh","Sambhal",null,null,null,null,null,true]
[33,"Uttar Pradesh","Shahjahanpur",null,null,null,null,null,true]
[33,"Uttar Pradesh","Sitapur",null,null,null,null,null,true]
[33,"Uttar Pradesh","Sultanpur",null,null,null,null,null,true]
[33,"Uttar Pradesh","Unnao",null,null,null,null,null,true]
[33,"Uttar Pradesh","Varanasi",null,null,null,null,null,true]
[34,"Uttarakhand","Almora",null,null,null,null,null,true]
[34,"Uttarakhand","Bageshwar",null,null,null,null,null,true]
[34,"Uttarakhand","Chamoli",null,null,null,null,null,true]
[34,"Uttarakhand","Champawat",null,null,null,null,null,true]
[34,"Uttarakhand","Dehradun",null,null,null,null,null,true]
[34,"Uttarakhand","Haldwani",null,null,null,null,null,true]
[34,"Uttarakhand","Haridwar",null,null,null,null,null,true]
[34,"Uttarakhand","Kashipur",null,null,null,null,null,true]
[34,"Uttarakhand","Mussoorie",null,null,null,null,null,true]
[34,"Uttarakhand","Nainital",null,null,null,null,null,true]
[34,"Uttarakhand","Pauri",null,null,null,null,null,true]
[34,"Uttarakhand","Pithoragarh",null,null,null,null,null,true]
[34,"Uttarakhand","Rishikesh",null,null,null,null,null,true]
[34,"Uttarakhand","Roorkee",null,null,null,null,null,true]
[34,"Uttarakhand","Rudrapur",null,null,null,null,null,true]
[34,"Uttarakhand","Tehri",null,null,null,null,null,true]
[34,"Uttarakhand","Uttarkashi",null,null,null,null,null,true]
[35,"West Bengal","Alipurduar",null,null,null,null,null,true]
[35,"West Bengal","Asansol",null,null,null,null,null,true]
[35,"West Bengal","Baharampur",null,null,null,null,null,true]
[35,"West Bengal","Balurghat",null,null,null,null,null,true]
[35,"West Bengal","Bankura",null,null,null,null,null,true]
[35,"West Bengal","Bardhaman",null,null,null,null,null,true]
[35,"West Bengal","Baruipur",null,null,null,null,null,true]
[35,"West Bengal","Basirhat",null,null,null,null,null,true]
[35,"West Bengal","Chakdaha",null,null,null,null,null,true]
[35,"West Bengal","Cooch Behar",null,null,null,null,null,true]
[35,"West Bengal","Dankuni",null,null,null,null,null,true]
[35,"West Bengal","Darjeeling",null,null,null,null,null,true]
[35,"West Bengal","Dhulian",null,null,null,null,null,true]
[35,"West Bengal","Durgapur",null,null,null,null,null,true]
[35,"West Bengal","Habra",null,null,null,null,null,true]
[35,"West Bengal","Haldia",null,null,null,null,null,true]
[35,"West Bengal","Howrah",null,null,null,null,null,true]
[35,"West Bengal","Jalpaiguri",null,null,null,null,null,true]
[35,"West Bengal","Kharagpur",null,null,null,null,null,true]
[35,"West Bengal","Kolkata",null,null,null,null,null,true]
[35,"West Bengal","Krishnanagar",null,null,null,null,null,true]
[35,"West Bengal","Malda",null,null,null,null,null,true]
[35,"West Bengal","Medinipur",null,null,null,null,null,true]
[35,"West Bengal","Nabadwip",null,null,null,null,null,true]
[35,"West Bengal","Purulia",null,null,null,null,null,true]
[35,"West Bengal","Raiganj",null,null,null,null,null,true]
[35,"West Bengal","Ranaghat",null,null,null,null,null,{"$f":"D649=N648","v":true}]
[35,"West Bengal","Rishra",null,null,null,null,null,true]
[35,"West Bengal","Serampore",null,null,null,null,null,true]
[35,"West Bengal","Shantipur",null,null,null,null,null,true]
[35,"West Bengal","Siliguri",null,null,null,null,null,true]
[35,"West Bengal","Tamluk",null,null,null,null,null,true]
[null,null,null,null,null,null,null,null,true]

{"sheet":"Taxonomy","index":5,"n_rows":160,"n_cols":5,"rows_kept":160,"cut":false,"hidden":true,"merged":[]}
["element","label","type","periodType","validation"]
["General Information"]
["ScripCode","Scrip code*","in-bse-aud-types:ScripCode","duration","1) This field is mandatory.\n2) Enter a valid Scrip code.\n3) Please enter 6 digit Scrip code."]
["Symbol","NSE Symbol*","xbrli:stringItemType","duration","1) This field is mandatory.\n2) Space is not allowed.\n3) Maximum 10 characters allowed."]
["MSEISymbol","MSEI Symbol*","xbrli:stringItemType","duration","1) This field is mandatory.\n2) Space is not allowed.\n3) Maximum 10 characters allowed."]
["ISIN","ISIN*","in-bse-aud-types:ISIN","duration","1) This field is mandatory.\n2) Please enter 12 digit ISIN number in expected format \"[iI][nN])([0-9a-zA-Z]){9}[0-9]\""]
["NameOfTheCompany","Name of the company*","xbrli:stringItemType","duration","1) This field is mandatory. \n2) Please enter name of the entity."]
["RegisteredOfficeAddress","Registered office address*","xbrli:stringItemType","duration","1) This field is mandatory. \n2) Please enter registered office address"]
["RegisteredOfficeState","Registered office state*","xbrli:stringItemType","duration","1) This field is mandatory. \n2) Please select value from drop down only."]
["RegisteredOfficeCity","Registered office city*","xbrli:stringItemType","duration","1) This field is mandatory.\n2) Please select value from drop down only."]
["RegisteredOfficeDistrict","Registered office district*","xbrli:stringItemType","duration","This field is mandatory."]
["RegisteredOfficePinCode","Registered office pin code*","xbrli:nonNegativeIntegerItemType","duration","1) This field is mandatory.\n2) Please enter registered office 6 digit pin code"]
["RegisteredOfficeISDCode","Registered Office ISD Code","xbrli:stringItemType","duration"]
["RegisteredOfficeStdCode","Registered Office STD Code","xbrli:stringItemType","duration","1) This field is mandatory.\n2) Please enter STD Code of Registered office between 2 to 6 digit\n3) Space is not allowed."]
["RegisteredOfficeContactNumber","Registered Office Contact Number","xbrli:stringItemType","duration","1) This field is mandatory.\n2) Please enter Contact Number of Registered office between 5 to 10 digit\n3) Space is not allowed."]
["RegisteredOfficeSTDCodeOfFaxNumber","Registered Office STD Code Of Fax Number","xbrli:stringItemType","duration","1) This field is mandatory, if value is presented in \"Registered Office Fax Number\" field.\n2) Please enter STD Code of Registered office between 2 to 6 digit\n3) Space is not allowed."]
["RegisteredOfficeFaxNumber","Registered Office Fax Number","xbrli:stringItemType","duration","1) This field is mandatory, if value is presented in \"Registered Office STD Code Of Fax Number\" field.\n2) Please enter Contact Number of Registered office between 5 to 10 digit\n3) Space is not allowed."]
["RegisteredOfficeCountry","Registered office country*","xbrli:stringItemType","duration"]
["RegisteredOfficeWebsite","Registered office website*","xbrli:stringItemType","duration","1) This field is mandatory.\n2) Enter a vaid website."]
["RegisteredOfficeEmail","Registered office email*","xbrli:stringItemType","duration","1) This field is mandatory.\n2) Enter a valid email address."]
[null,"Same as above",null,null,"Please select value from drop down only."]
["CorrespondenceAddress","Correspondence address*","xbrli:stringItemType","duration","1) This field is mandatory. \n2) Please enter correspondence address"]
["CorrespondenceState","Correspondence state","xbrli:stringItemType","duration","Please enter in Correspondence of the State name"]
["CorrespondenceCity","Correspondence city","xbrli:stringItemType","duration","Please enter in Correspondence of the City name"]
["CorrespondenceDistrict","Correspondence district","xbrli:stringItemType","duration","Please enter in Correspondence of the District name"]
["CorrespondencePinCode","Correspondence pin code","xbrli:nonNegativeIntegerItemType","duration"]
["CorrespondenceISDCode","Correspondence ISD Code","xbrli:stringItemType","duration","1) Please enter ISD code of Correspondence address between 1 to 5 digit.\n2) Space is not allowed."]
["CorrespondenceSTDCode","Correspondence STD Code","xbrli:stringItemType","duration","1) Please enter STD Code of Correspondence address between 2 to 6 digit.\n2) Space is not allowed."]
["CorrespondenceContactNumber","Correspondence Contact Number","xbrli:stringItemType","duration","1) Please enter Contact Number of Correspondence office between 5 to 10 digit\n2) Space is not allowed."]
["CorrespondenceSTDCodeOfFaxNumber","Correspondence STD Code Of Fax Number","xbrli:stringItemType","duration","1) Please enter STD Code of Fax number of Correspondence address between 2 to 6 digit.\n2) Space is not allowed."]
["CorrespondenceFaxNumber","Correspondence Fax Number","xbrli:stringItemType","duration","1) Please enter Fax number of Correspondence address between 5 to 10 digit.\n2) Space is not allowed."]
["CorrespondenceCountry","Correspondence country","xbrli:stringItemType","duration"]
["CorrespondenceEmail","Correspondence email","xbrli:stringItemType","duration","Enter a valid email address."]
["DateOfQuarterEnded","Reporting quarter*","xbrli:dateItemType","instant","1) This field is mandatory.\n2) Please enter date of Reporting quarter.\n3) Future date not allowed.\n4) Enter date in \"DD-MM-YYYY\" format."]
["FaceValueOfTheShares","Face value*","num:perShareItemType","instant","This field is mandatory. Please enter Face value"]
["Reco Format"]
["NameOfTheStockExchange","Name of stock exchanges where the company's securities are listed","in-bse-aud-types:StockExchange","duration","This field is mandatory. Please select value from drop down only."]
["NumberOfSharesListed","Listed Capital","xbrli:sharesItemType","instant"]
["PercentageOfTotalIssuedCapital","% Of total issued capital","num:percentItemType","instant"]
["DisclosureOfNoteOnNamesOfTheStockExchangesWhereTheCompanySecuritiesAreListedTextBlock","Disclosure of note on names of the stock exchanges where the company's securities are listed","nonnum:textBlockItemType","duration"]
["NumberOfSharesIssued","Issued capital*","xbrli:sharesItemType","instant","This field is mandatory. Issued capital must grater than or equal to listed capital"]
["NumberOfSharesHeldInDematerialisedFormInCDSL","Held in dematerialised form in CDSL*","xbrli:sharesItemType","instant","This field is mandatory. Please enter Held in dematerialised form in CDSL (3)"]
["PercentageOfSharesHeldInDematerialisedFormInCDSLToNumberOfSharesIssued","PercentageOfSharesHeldInDematerialisedFormInCDSLToTotalNumberOfSharesIssued","num:percentItemType","instant"]
["NumberOfSharesHeldInDematerialisedFormInNSDL","Held in dematerialised form in NSDL*","xbrli:sharesItemType","instant","This field is mandatory. Please enter Held in dematerialised form in NSDL (4)"]
["PercentageOfSharesHeldInDematerialisedFormInNSDLToNumberOfSharesIssued","PercentageOfSharesHeldInDematerialisedFormInNSDLToTotalNumberOfSharesIssued","num:percentItemType","instant"]
["NumberOfSharesHeldInPhysicalFormat","Physical*","xbrli:sharesItemType","instant","This field is mandatory. Please enter Physical (5)"]
["PercentageOfSharesHeldInPhysicalFormatToNumberOfSharesIssued","PercentageOfSharesHeldInPhysicalFormatToTotalNumberOfSharesIssued","num:percentItemType","instant"]
["NumberOfShares","Total no.of shares*","xbrli:sharesItemType","instant","This field is mandatory. Please enter Total no.of shares (3+4+5)"]
["TotalNumberOfSecurityHoldersAsOnEndOfTheQuarter","Total no. of Security holders as on end of the quarter*","xbrli:sharesItemType","instant"]
["PercentageOfTotalNumberOfSharesheldToNumberOfSharesIssued","Percentage as a total number of shares","num:percentItemType","instant"]
["DifferenceBetweenNumberOfSharesIssuedAndListed","Difference between number of shares issued and listed","xbrli:sharesItemType","duration","This field is mandatory. Please enter Reasons for difference if any, Between issued capital and listed capital"]
["ReasonsForDifferenceBetweenNumberOfSharesIssuedAndListedTextBlock","Reasons for difference if any, Between issued capital and listed capital*","nonnum:textBlockItemType","duration"]
["DifferenceBetweenNumberOfSharesIssuedAndTotalNumberOfShares","Difference between number of shares issued and total number of shares","xbrli:sharesItemType","duration","This field is mandatory. Please enter Reasons for difference if any, Between issued capital and total number of shares."]
["ReasonsForDifferenceBetweenNumberOfSharesIssuedAndTotalNumberOfSharesTextBlock","Reasons for difference if any, Between issued capital and total number of shares*","nonnum:textBlockItemType","duration"]
["DifferenceBetweenNumberOfSharesListedAndTotalNumberOfShares","Difference between number of shares listed and total number of shares","xbrli:sharesItemType","duration","This field is mandatory. Please enter Reasons for difference if any, Between listed capital and total number of shares"]
["ReasonsForDifferenceBetweenNumberOfSharesListedAndTotalNumberOfSharesTextBlock","Reasons for difference if any, Between listed capital and total number of shares*","nonnum:textBlockItemType","duration"]
["WhetherComapanyHasChangesInShareCapitalDuringTheQuarter","Whether changes during the quarter*","xbrli:booleanItemType","duration","1) This field is mandatory. \n2) Please select value from drop down only."]
["WhetherRegisterOfMembersIsUpdated","Register of members is updated*","xbrli:booleanItemType","instant","1) This field is mandatory. \n2) Please select value from drop down only."]
["UpdatedDateOfRegisterOfMembers","If not, Updated upto which date","xbrli:dateItemType","instant"]
["ReferenceOfPreviousQuarterWithRegardsToExcessDematerialisedShares","Reference of previous quarter with regards to excess dematerialised shares,If any.","xbrli:stringItemType","duration"]
["HasTheCompanyResolvedTheMatterOfExcessDematerialisedSharesInTheCurrentQuarter","Has the company resolved the matter (excess dematerialised shares mentioned above) in the current quarter ?*","xbrli:stringItemType","duration","1) This field is mandatory. \n2) Please select value from drop down only."]
["ReasonForNotResolvingTheMatterOfExcessDematerialisedSharesInTheCurrentQuarter","If not, Reason why ?","xbrli:stringItemType","duration"]
["DisclosureOfNoteOnOtherDetailsOfAuditorTextBlock","Other Details Auditor","nonnum:textBlockItemType","duration"]
["TotalNumberOfDematRequestsConfirmedAfter21Days","Total number of demat requests confirmed after 21 days","xbrli:nonNegativeIntegerItemType","duration"]
["TotalNumberOfSharesConfirmedAfter21Days","Total number of shares confirmed after 21 days","xbrli:nonNegativeIntegerItemType","duration"]
["ReasonForDelayForNonConfirmationOfDematRequestAfter21Days","Reason for delay for non confirmation of demat request after 21 days","xbrli:stringItemType","duration"]
["TotalNumberOfDematRequestsPendingAfter21Days","Total number of demat requests pending after 21 days","xbrli:nonNegativeIntegerItemType","duration"]
["TotalNumberOfSharesPendingAfter21Days","Total number of shares pending after 21 days","xbrli:nonNegativeIntegerItemType","duration"]
["ReasonForDelayForNonConfirmationOfDematRequestWithin21Days","Reason for delay for non confirmation of demat request within 21 days","xbrli:stringItemType","duration"]
["DisclosureOfNoteOnTotalNumberOfRequestsConfirmedAfter21DaysAndTheTotalNumberOfRequestsPendingBeyond21DaysTextBlock","Disclosure of note on total number of requests confirmed after 21 days and the total number of requests pending beyond 21 days","nonnum:textBlockItemType","duration"]
["NameOfTheComplianceOfficer","Name of the compliance officer","xbrli:stringItemType","duration","This field is mandatory. Please enter Name of the compliance officer."]
["DesignationOfTheComplianceOfficer","Designation of the compliance officer","xbrli:stringItemType","duration"]
["MembershipNumberOfComplianceOfficer","Membership Number Of Compliance Officer*","xbrli:stringItemType","duration","This field is mandatory."]
["STDCodeOfTheComplianceOfficer","STD Code Of The Compliance Officer","xbrli:stringItemType","duration"]
["ContactNumberOfTheComplianceOfficer","Contact Number Of The Compliance Officer","xbrli:stringItemType","duration"]
["STDCodeOfFaxNumberOfTheComplianceOfficer","STD Code Of Fax Number Of The Compliance Officer","xbrli:stringItemType","duration","1) This field is mandatory, if value is presented in \"Fax Number Of The Compliance Officer\" field.\n2) Please enter STD Code of Fax number of Compliance officer between 2 to 6 digit\n3) Space is not allowed."]
["FaxNumberOfTheComplianceOfficer","Fax Number Of The Compliance Officer","xbrli:stringItemType","duration","1) This field is mandatory, if value is presented in \"STD Code Of Fax Number Of The Compliance Officer\" field.\n2) Please enter Fax number of Compliance officer between 5 to 10 digit\n3) Space is not allowed."]
["EMailIdOfTheComplianceOfficer","Name of the compliance officer E-mail id","xbrli:stringItemType","duration","This field is mandatory. Please enter Name of the compliance officer E-mail id"]
["QualificationOfCertifyingAuditor","CA/CS","in-bse-aud-types:QualificationOfAuditor","duration","This field is mandatory. Please enter name of  Company secretary or Charted accountant "]
["NameOfCertifyingAuditor","Name of certifying auditor","xbrli:stringItemType","duration","This field is mandatory. Please enter Name of certifying auditor"]
["DateOfSigningOfCertifyingAuditor","Name of certifying auditor Date of issue of report","xbrli:dateItemType","instant","1) This field is mandatory.\n2) Please enter certifying auditor Date of issue of report.\n3) Please enter date in 'DD-MM-YYYY' format.\n4) Date should not allow to enter future Date.\n5) Date of issue of report can not be less than the \"Reporting quarter*\" field in \"General Info\" sheet."]
["AddressOfCertifyingAuditor","Name of certifying auditor Address","xbrli:stringItemType","duration","This field is mandatory. Please enter Name of certifying auditor Address"]
["CityOfCertifyingAuditor","Name of certifying auditor City","xbrli:stringItemType","duration","1) This field is mandatory. \n2) Please select value from drop down only."]
["PinCodeOfCertifyingAuditor","Name of certifying auditor Pincode","xbrli:nonNegativeIntegerItemType","duration","1) This field is mandatory.\n2) Please enter 6 digit pin code."]
["STDCodeOfCertifyingAuditor","STD Code Of Certifying Auditor","xbrli:stringItemType","duration"]
["ContactNumberOfCertifyingAuditor","Contact Number Of Certifying Auditor","xbrli:stringItemType","duration","1) This field is mandatory.\n2) Please enter Certifying Auditor telephone number between 5 to 10 digit.\n3) Space is not allowed."]
["STDCodeOfFaxNumberOfCertifyingAuditor","STD Code Of Fax Number Of Certifying Auditor","xbrli:stringItemType","duration"]
["FaxNumberOfCertifyingAuditor","Fax Number Of Certifying Auditor","xbrli:stringItemType","duration","1) This field is mandatory, if value is presented in \"STD Code Of Fax Number Of Certifying Auditor\" field.\n2) Please enter Certifying Auditor Fax number between 5 to 10 digit.\n3) Space is not allowed."]
["EmailOfCertifyingAuditor","Name of certifying auditor Email","xbrli:stringItemType","duration"]
["MembershipNumberOfCertifyingAuditor","Name of certifying auditor Membership no.","xbrli:stringItemType","duration","This field is mandatory. Please enter Name of certifying auditor Membership no."]
["FirmRegistrationNumberOfCertifyingAuditor","Firms registration number of audit firm","xbrli:stringItemType","duration","1) This field is mandatory, if \"CA/CS/CMA\" value is \"Chartered accountant\"\n2) Space is not allowed."]
["NameOfTheFirm","Name of the firm ","xbrli:stringItemType","duration"]
["COPNumberOfCertifyingAuditor","COP Number Of Certifying Auditor","xbrli:stringItemType","duration","1) This field is mandatory.\n2) Only numeric value allowed.\n3) Maximum 7 digit numeric value allowed."]
["AppointmentOfCommonAgencyForShareRegistryWork","Appointment of common agency for share registry work","xbrli:stringItemType","duration","This field is mandatory. Please enter Appointment of common agency for share registry work"]
["NameOfRTA","Name of RTA","xbrli:stringItemType","duration","1) This is a mandatory field, if \"Yes\" selected in \"Whether Registered with SEBI\".\n2 ) Please select value from drop down only."]
["SEBIRegistrationNumber","Name of RTA SEBI registration no.","xbrli:stringItemType","duration","1) This is a mandatory field, if \"Yes\" selected in \"Appointment of common agency for share registry work*\" or \"Whether Registered with SEBI\".\n2) Enter a valid SEBI Registration number (INR[0-9]{9})"]
["AddressOfRTA","Name of RTA Address","xbrli:stringItemType","duration","This field is mandatory. Please enter Name of RTA Address."]
["StateOfRTA","Name of RTA State","xbrli:stringItemType","duration","1) This field is mandatory. \n2) Please select value from drop down only."]
["CityOfRTA","Name of RTA City","xbrli:stringItemType","duration","1) This field is mandatory. \n2) Please select value from drop down only."]
["PincodeOfRTA","Name of RTAPincode","xbrli:nonNegativeIntegerItemType","duration","1) This field is mandatory.\n2) Please enter 6 digit pin code."]
["STDCodeOfRTA","STD Code Of RTA","xbrli:stringItemType","duration"]
["ContactNumberOfRTA","Contact Number Of RTA","xbrli:stringItemType","duration","1) This field is mandatory.\n2) Please enter registrar office contanct number between 5 to 10 digit.\n3) Space is not allowed."]
["STDCodeOfFaxNumberOfRTA","STD Code Of Fax Number Of RTA","xbrli:stringItemType","duration"]
["FaxNumberOfRTA","Fax Number Of RTA","xbrli:stringItemType","duration","1) This field is mandatory, if value is presented in \"STD Code Of Fax Number Of RTA\" field.\n2) Please enter Fax number of RTA between 5 to 10 digit.\n3) Space is not allowed."]
["EmailIdOfRTA","Name of RTA E-mail id*","xbrli:stringItemType","duration","This field is mandatory. Please enter Name of RTA E-mail id."]
["WebsiteAdressOfRTA","Website Address*","xbrli:stringItemType","duration"]
["RemarksRelatingToRegisterAndShareTransferAgentExplanatoryTextBlock","Remarks relating to Register and Share Transfer Agent","nonnum:textBlockItemType","duration"]
["DisclosureOfNotesOnReconciliationOfShareCapitalAuditExplanatoryTextBlock","Any other detail that the auditor may like to provide. (e.g. BIFR company, delisting from SE,","nonnum:textBlockItemType","duration"]
["ReasonForEnteringTheSameMembershipNumber","Reason for entering the same membership Nos.","xbrli:stringItemType","duration"]
["Share Capital"]
["ReasonForChangesInShareCapital","Particulars","xbrli:stringItemType","duration","1) This field is mandatory. \n2) Please select value from drop down only."]
["IncreaseDecreaseInNumberOfShares","No.of shares","xbrli:sharesItemType","duration","This field is mandatory. Please enter No.of shares which allows greater then or equal to 0(Zero)."]
["WhetherCompanyHasAppliedForListing","Applied / Not Applied for listing","in-bse-aud-types:CompanyHasAppliedForListing","duration","1) This field is mandatory. \n2) Please select value from drop down only."]
["NameOfTheStockExchange","Listed on Stock Exchanges (Specify Names)","in-bse-aud-types:StockExchange","duration","1) This field is mandatory. \n2) Please select value from drop down only."]
["WhetherIntimatedToCDSL","Whether intimated to CDSL","xbrli:booleanItemType","duration","1) This field is mandatory. \n2) Please select value from drop down only."]
["WhetherIntimatedToNSDL","Whether intimated to NSDL","xbrli:booleanItemType","duration","1) This field is mandatory. \n2) Please select value from drop down only."]
["NamesOfStockExchangesWhereInPrincipalApprovalIsPending","In-prin appr. pending for Stock Exchange","xbrli:stringItemType","duration","1) This field is mandatory. \n2) Please select value from drop down only."]
["DisclosureOfNoteOnCertifyingTheDetailsOfChangesInShareCapitalDuringTheQuarterUnderConsiderationTextBlock","Disclosure of note on certifying the details of changes in share capital during the quarter under consideration","nonnum:textBlockItemType","duration"]
["WhetherQualifiedCompanySecretaryIsComplianceOfficer","Whether Qualified Company Secretary is Compliance Officer","xbrli:booleanItemType","duration","1) This field is mandatory. \n2) Please select value from drop down only."]
["DateOfAppointmentOfComplianceOfficer","Date of appointment of compliance officer*","xbrli:dateItemType","instant"]
["WhetherAnyChangeInComplianceOfficerDuringTheQuarter","Whether any change in Compliance Officer during the quarter ","xbrli:booleanItemType","duration","1) This field is mandatory. \n2) Please select value from drop down only."]
["WhetherThePreviousComplianceOfficerWasQualifiedCompanySecretary","Whether the previous Compliance Officer was Qualified Company Secretary ","xbrli:booleanItemType","duration","1) This field is mandatory. \n2) Please select value from drop down only."]
["NameOfPreviousComplianceOfficer","Previous Compliance Officer Name","xbrli:stringItemType","duration"]
["MembershipNumberOfPreviousComplianceOfficer","Membership Nos","xbrli:stringItemType","duration","This field is mandatory."]
["DateOfAppointmentOfPreviousComplianceOfficer","Date of appointment of previous compliance officer","xbrli:dateItemType","instant","1) This field is mandatory.\n2) Future date not allowed.\n3) Enter date in 'DD-MM-YYYY' format.\n4) Enter a valid Date.\n5) 'Date of appointment' of previous compliance officer should not be greater than the 'Date of appointment' of current compliance officer."]
["DateOfCessationOfPreviousComplianceOfficer","Date of cessation of previous compliance officer","xbrli:dateItemType","instant","1) This field is mandatory.\n2) Today date and Future date are not allowed.\n3) \"Date of Cessation\" of previous compliance officer should be greater than or equal to the \"Date of appointment\" of previous compliance officer.\"\n4) Date of Cessation of previous compliance officer can not be greater than the \"Date of Appointment\" of compliance officer.\n5) Enter date in 'DD-MM-YYYY' format.\n6) Enter a valid Date."]
["WhetherAnyChangeInRegistrarAndShareTransferAgents","Whether any change in Registrar and Share Transfer Agents","xbrli:booleanItemType","duration","1) This field is mandatory. \n2) Please select value from drop down only."]
["NameOfPreviousRegistrarAndShareTransferAgents","Previous Registrar and Share Transfer Agents Name","xbrli:stringItemType","duration","This is a mandatory field, if \"Yes\" selected in \"Whether any change in Registrar and Share Transfer Agents\" field."]
["DateOfCessationPreviousRegistrarAndShareTransferAgents","Date of cessation previous registrar and share transfer agents","xbrli:dateItemType","instant","1) This is a mandatory field, if \"Yes\" selected in \"Whether any change in Registrar and Share Transfer Agents\" field.\n2) Enter date in 'DD-MM-YYYY' format.\n3) Enter a valid Date."]
["PrefixOfMembershipNumberOfComplianceOfficer","Prefix of Membership Number Of Compliance Officer","xbrli:stringItemType","duration"]
["WhetherComplianceOfficerAppointed","Whether Compliance officer appointed","xbrli:booleanItemType","duration","1) This field is mandatory. \n2) Please select value from drop down only."]
["WhetherRegisteredwithSEBI","Whether Registered with SEBI","in-bse-aud-types:RegisteredwithSEBI","duration"]
["WhetherCompanyHasCIN","Whether company has CIN","xbrli:booleanItemType","duration","1) This field is mandatory. \n2) Please select value from drop down only."]
["CorporateIdentityNumber","CIN Number","in-bse-aud-types:CINNumber","duration","1. This is mandatory field in case \"Whether Company has CIN\" value is \"Yes\".\n2) Please enter a valid CIN number in expected format \"[LU]{1}[0-9]{5}[A-Z]{2}[0-9]{4}[A-Z]{3}[0-9]{6}\""]
["PANOfComplianceOfficer","PAN of the compliance officer*","in-bse-aud-types:PermanentAccountNumber","duration","1) This field is mandatory. \n2) Enter valid Pan number in expected format \"[A-Z]{3}[ABCFGHLJPT][A-Z][0-9]{4}[A-Z]\""]
["PANOfPreviousComplianceOfficer","PAN of the previous compliance officer*","in-bse-aud-types:PermanentAccountNumber","duration","1) This field is mandatory. \n2) Enter valid Pan number in expected format \"[A-Z]{3}[ABCFGHLJPT][A-Z][0-9]{4}[A-Z]\""]
[]
[]
[null,"E-mail id of the compliance officer",null,null,"This field is mandatory. Please enter Name of the compliance officer E-mail id"]
[null,"CA/CS/CMA*",null,null,"This field is mandatory. Please enter name of  Company secretary or Charted accountant "]
[null,"Name of certifying auditor",null,null,"This field is mandatory. Please enter Name of certifying auditor"]
[null,"Date of signing of certifying auditor",null,null,"1) This field is mandatory.\n2) Please enter certifying auditor Date of issue of report.\n3) Please enter date in 'DD-MM-YYYY' format.\n4) Date should not allow to enter future Date.\n5) Date of issue of report can not be less than the \"Reporting quarter*\" field in \"General Info\" sheet."]
[null,"Address of certifying auditor",null,null,"This field is mandatory. Please enter Name of certifying auditor Address"]
[]
[]
[null,"Contact number of certifying auditor"]
[null,"Fax number of certifying auditor"]
[null,"Email of certifying auditor"]
[null,"Membership number of certifying auditor",null,null,"This field is mandatory. Please enter Name of certifying auditor Membership no."]
[null,"Name of the firm"]
[null,"COP number of certifying auditor",null,null,"1) This field is mandatory.\n2) Only numeric value allowed."]
[null,"SEBI registration number",null,null,"This is a mandatory field, if \"Yes\" selected in \"Appointment of common agency for share registry work*\" or \"Whether Registered with SEBI\"."]
[null,"Address of RTA",null,null,"This field is mandatory. Please enter Name of RTA Address."]
[null,"City of RTA"]
[null,"Pincode of RTA"]
[null,"State of RTA"]
[null,"Contact number of RTA"]
[null,"Email id of RTA",null,null,"This field is mandatory. Please enter Name of RTA E-mail id."]
[null,"Website adress of RTA"]
[null,"Name of previous registrar and share transfer agents"]

{"sheet":"TextBlock","index":6,"n_rows":0,"n_cols":0,"rows_kept":0,"cut":false,"hidden":true,"merged":[]}